Organisation Name,Effective Date,Purch Date,Service Area,Expense Area,Beneficiary,Net amount,     Tax,     Gross,Long Text,MCC Description
Buckinghamshire Council,31.03.2024,30.03.2024,Deputy Chief Executive,Leader - DCE,FACEBK Q6G2N2LYS2,840,0,840,Advertising,Advertising services
Buckinghamshire Council,31.03.2024,30.03.2024,Children's Services,Education & Childrens Services - CS Dir,NEW SKILLS / BE-A,99,0,99,Leaving Care  - Financial Assistance,Schools
Buckinghamshire Council,31.03.2024,30.03.2024,"Planning, Growth & Sustainability",Planning & Regeneration - PGS,TRAINLINE,19.95,0,19.95,Staff Travelling Expenses,Passenger railways
Buckinghamshire Council,31.03.2024,29.03.2024,Resources,AH&R - Res Dir,FASTHOSTS,8.4,0,8.4,IT - Computer Network Charges,Computer network information services
Buckinghamshire Council,31.03.2024,29.03.2024,"Planning, Growth & Sustainability",AH&R - PGS Dir,PRIME VIDEO CHANNELS,4.99,0,4.99,Other Equipment and Materials,Continuous subscriptions
Buckinghamshire Council,31.03.2024,29.03.2024,Communities,Transport - Communities Dir,AMERSHAM SYCAMORE ROAD,0.8,0,0.8,Repair and Maintenance of Equipment,Car parking & garages
Buckinghamshire Council,31.03.2024,29.03.2024,Communities,Transport - Communities Dir,AMERSHAM SYCAMORE ROAD,0.8,0,0.8,Repair and Maintenance of Equipment,Car parking & garages
Buckinghamshire Council,31.03.2024,29.03.2024,Communities,Transport - Communities Dir,AMERSHAM OLD TOWN,0.8,0,0.8,Repair and Maintenance of Equipment,Car parking & garages
Buckinghamshire Council,31.03.2024,29.03.2024,Children's Services,Education & Childrens Services - CS Dir,AMAZON* 204-9489403-13,6.99,0,6.99,Furniture,Misc. general merchandise
Buckinghamshire Council,31.03.2024,29.03.2024,Children's Services,Education & Childrens Services - CS Dir,ONE BELOW,2,0,2,Furniture,Grocery stores
Buckinghamshire Council,31.03.2024,29.03.2024,Children's Services,Education & Childrens Services - CS Dir,SAINSBURY S S/MKTS,59.75,0,59.75,Activities & General Recreation,Grocery stores
Buckinghamshire Council,31.03.2024,28.03.2024,Children's Services,Education & Childrens Services - CS Dir,HM PASSPORT OFFICE,53.5,0,53.5,Sec 20/31: Financial Assistance One Off,Government services
Buckinghamshire Council,31.03.2024,28.03.2024,Children's Services,Education & Childrens Services - CS Dir,HM PASSPORT OFFICE,53.5,0,53.5,Sec 20/31: Financial Assistance One Off,Government services
Buckinghamshire Council,31.03.2024,28.03.2024,Children's Services,Education & Childrens Services - CS Dir,CORNWALL COUNCIL,11,0,11,Sec 20/31: Transport,Government services
Buckinghamshire Council,31.03.2024,28.03.2024,Children's Services,Education & Childrens Services - CS Dir,AMAC EXPRESS SERVICES,300,0,300,Sec 20/31: Transport,Taxicabs & limousines
Buckinghamshire Council,31.03.2024,28.03.2024,Children's Services,Education & Childrens Services - CS Dir,TRAINLINE,28.29,0,28.29,Sec 20/31: Transport,Passenger railways
Buckinghamshire Council,31.03.2024,28.03.2024,"Planning, Growth & Sustainability",Climate Change & Environment - PGS,TWITTER PAID FEATURES,100.8,0,100.8,Awaiting Coding,
Buckinghamshire Council,31.03.2024,28.03.2024,Communities,Housing & Homelessness & Regulatory Comm,WWW.CANFORD.CO.UK,201.6,0,201.6,General Repairs & Maintenance,Electrical parts & equipment
Buckinghamshire Council,31.03.2024,28.03.2024,Children's Services,Education & Childrens Services - CS Dir,WWW.JOHNLEWIS.COM,-995,-199,"-1,194.00",Computer Consumables,Department stores
Buckinghamshire Council,31.03.2024,28.03.2024,"Planning, Growth & Sustainability",AH&R - PGS Dir,SCREWFIX DIR LTD,15.49,0,15.49,Other Equipment and Materials,Timber & building supplies
Buckinghamshire Council,31.03.2024,28.03.2024,"Planning, Growth & Sustainability",AH&R - PGS Dir,LONDIS,7.96,0,7.96,General Provisions (Food),Sweets & confectionary
Buckinghamshire Council,31.03.2024,28.03.2024,Children's Services,Education & Childrens Services - CS Dir,HM PASSPORT OFFICE,82.5,0,82.5,Awaiting Coding,Government services
Buckinghamshire Council,31.03.2024,28.03.2024,Children's Services,Education & Childrens Services - CS Dir,UTILITA ENERGY LIMITED,150,0,150,General Repairs & Maintenance,Utilities
Buckinghamshire Council,31.03.2024,28.03.2024,Children's Services,Education & Childrens Services - CS Dir,LEBARA MOBILE LIMITED,25,0,25,Computer Support Services,Computer network information services
Buckinghamshire Council,31.03.2024,28.03.2024,Children's Services,Education & Childrens Services - CS Dir,OMNIPLEX WYCOMBE,9.9,0,9.9,Awaiting Coding,Cinemas
Buckinghamshire Council,31.03.2024,28.03.2024,Children's Services,Education & Childrens Services - CS Dir,Rush High Wycombe,20.5,0,20.5,Awaiting Coding,Misc. recreational services
Buckinghamshire Council,31.03.2024,28.03.2024,Children's Services,Education & Childrens Services - CS Dir,Flip Out,29.4,0,29.4,Awaiting Coding,Misc. recreational services
Buckinghamshire Council,31.03.2024,28.03.2024,Deputy Chief Executive,AH&R- DCE Dir,SUMUP  *CABS4U,18,0,18,Other Personal Needs,Taxicabs & limousines
Buckinghamshire Council,31.03.2024,28.03.2024,Children's Services,Education & Childrens Services - CS Dir,CO-OP GROUP FOOD,8.85,0,8.85,Awaiting Coding,Grocery stores
Buckinghamshire Council,31.03.2024,28.03.2024,Children's Services,Education & Childrens Services - CS Dir,WWW.BUCKINGHAMSHIRE.GOV,21.11,0,21.11,Leaving Care  - Financial Assistance,Government services
Buckinghamshire Council,31.03.2024,28.03.2024,Children's Services,Education & Childrens Services - CS Dir,AO RETAIL LIMITED,344,0,344,Leaving Care - Grants for Care Leavers,Household appliance stores
Buckinghamshire Council,31.03.2024,28.03.2024,Children's Services,Education & Childrens Services - CS Dir,WF* UK4232013394,371.97,0,371.97,Leaving Care - Grants for Care Leavers,Furniture & home furnishing
Buckinghamshire Council,31.03.2024,28.03.2024,Children's Services,Education & Childrens Services - CS Dir,ASDA GEORGE COM LEEDS,-50,0,-50,Leaving Care - Grants for Care Leavers,Grocery stores
Buckinghamshire Council,31.03.2024,28.03.2024,Children's Services,Education & Childrens Services - CS Dir,ASDA GEORGE COM LEEDS,84,0,84,Leaving Care - Grants for Care Leavers,Grocery stores
Buckinghamshire Council,31.03.2024,28.03.2024,Children's Services,Education & Childrens Services - CS Dir,WWW.ARGOS.CO.UK,62,0,62,Leaving Care - Grants for Care Leavers,Department stores
Buckinghamshire Council,31.03.2024,28.03.2024,Children's Services,Education & Childrens Services - CS Dir,WWW.THERANGE.CO.UK,89.98,0,89.98,Leaving Care - Grants for Care Leavers,Misc. home furnishing
Buckinghamshire Council,31.03.2024,28.03.2024,Children's Services,Education & Childrens Services - CS Dir,CURRYS ONLINE,49.99,0,49.99,Leaving Care - Grants for Care Leavers,Electronics shops
Buckinghamshire Council,31.03.2024,28.03.2024,Children's Services,Education & Childrens Services - CS Dir,DUNELM SOFTFURNISHINGS,177,0,177,Leaving Care - Grants for Care Leavers,Furniture & home furnishing
Buckinghamshire Council,31.03.2024,28.03.2024,Children's Services,Education & Childrens Services - CS Dir,ABSOLUTELY KARTING (MAIDE,83.81,0,83.81,Activities & General Recreation,"Member clubs, sport, recreation & golf"
Buckinghamshire Council,31.03.2024,28.03.2024,Children's Services,Education & Childrens Services - CS Dir,NORFOLK COUNTY COUNCIL,11,0,11,Sec 20/31: Transport,Government services
Buckinghamshire Council,31.03.2024,28.03.2024,Children's Services,Education & Childrens Services - CS Dir,TRAINLINE,-228.3,0,-228.3,Sec 20/31: Supp for Contact,Passenger railways
Buckinghamshire Council,31.03.2024,28.03.2024,Resources,AH&R - Res Dir,FASTHOSTS,8.99,0,8.99,IT - Computer Network Charges,Computer network information services
Buckinghamshire Council,31.03.2024,28.03.2024,Children's Services,Education & Childrens Services - CS Dir,RP*BOOKED IT-WOKINGHAM SU,50,0,50,Subsistence,"Bars, taverns, pubs & nightclubs"
Buckinghamshire Council,31.03.2024,28.03.2024,Children's Services,Education & Childrens Services - CS Dir,PARADIGM HOUSING GROUP,563.33,0,563.33,Leaving Care - Transport,Government services
Buckinghamshire Council,31.03.2024,28.03.2024,Resources,AH&R - Res Dir,AMAZON* 204-2692089-98,340.68,0,340.68,Awaiting Coding,Misc. general merchandise
Buckinghamshire Council,31.03.2024,28.03.2024,Resources,AH&R - Res Dir,Dunelm SoftFurnishings,-149,0,-149,Awaiting Coding,Furniture & home furnishing
Buckinghamshire Council,31.03.2024,28.03.2024,Children's Services,Education & Childrens Services - CS Dir,TRAINLINE,-22.2,0,-22.2,Sec 20/31: Transport,Passenger railways
Buckinghamshire Council,31.03.2024,27.03.2024,Deputy Chief Executive,AH&R- DCE Dir,AMAZON* 204-4656194-24,540.24,0,540.24,Awaiting Coding,Misc. general merchandise
Buckinghamshire Council,31.03.2024,27.03.2024,Children's Services,Education & Childrens Services - CS Dir,AMAZON* 204-8498819-14,385.85,0,385.85,Leaving Care - Grants for Care Leavers,Misc. general merchandise
Buckinghamshire Council,31.03.2024,27.03.2024,Adults and Health,Health & Wellbeing - Adults & Health Dir,AMAZON* 204-6996880-40,107.99,0,107.99,Other Employees Expenses,Misc. general merchandise
Buckinghamshire Council,31.03.2024,27.03.2024,"Planning, Growth & Sustainability",Partnership Climate Change & Envir - PGS,TRAINLINE,36.5,0,36.5,Staff Travelling Expenses,Passenger railways
Buckinghamshire Council,31.03.2024,27.03.2024,"Planning, Growth & Sustainability",Partnership Climate Change & Envir - PGS,TRAINLINE,68,0,68,Staff Travelling Expenses,Passenger railways
Buckinghamshire Council,31.03.2024,27.03.2024,"Planning, Growth & Sustainability",Partnership Climate Change & Envir - PGS,TRAINLINE,-58,0,-58,Staff Travelling Expenses,Passenger railways
Buckinghamshire Council,31.03.2024,27.03.2024,"Planning, Growth & Sustainability",Planning & Regeneration - PGS,AMAZON* 204-1708835-09,14.98,0,14.98,Administrative Equipment & Tools,Misc. general merchandise
Buckinghamshire Council,31.03.2024,27.03.2024,Children's Services,Education & Childrens Services - CS Dir,AMAC EXPRESS SERVICES,600,0,600,Sec 20/31: Transport,Taxicabs & limousines
Buckinghamshire Council,31.03.2024,27.03.2024,Children's Services,Education & Childrens Services - CS Dir,LYNKPAY* 001 TAXIS,68.25,0,68.25,Sec 20/31: Transport,
Buckinghamshire Council,31.03.2024,27.03.2024,Children's Services,Education & Childrens Services - CS Dir,LYNKPAY* 001 TAXIS,63,0,63,Sec 20/31: Transport,
Buckinghamshire Council,31.03.2024,27.03.2024,Children's Services,Education & Childrens Services - CS Dir,TRAINLINE,240.79,0,240.79,Sec 20/31: Supp for Contact,Passenger railways
Buckinghamshire Council,31.03.2024,27.03.2024,Children's Services,Education & Childrens Services - CS Dir,TRAINLINE,19.39,0,19.39,Sec 20/31: Supp for Contact,Passenger railways
Buckinghamshire Council,31.03.2024,27.03.2024,Adults and Health,Health & Wellbeing - Adults & Health Dir,ASDA GROCERIES ONLINE,42.49,0,42.49,"Courses, Conference and Seminar Fees",Grocery stores
Buckinghamshire Council,31.03.2024,27.03.2024,Adults and Health,Health & Wellbeing - Adults & Health Dir,ASDA GROCERIES ONLINE,56.69,0,56.69,"Courses, Conference and Seminar Fees",Grocery stores
Buckinghamshire Council,31.03.2024,27.03.2024,Adults and Health,Health & Wellbeing - Adults & Health Dir,ASDA GROCERIES ONLINE,-8.5,0,-8.5,"Courses, Conference and Seminar Fees",Grocery stores
Buckinghamshire Council,31.03.2024,27.03.2024,Adults and Health,Health & Wellbeing - Adults & Health Dir,ASDA GROCERIES ONLINE,-3.75,0,-3.75,"Courses, Conference and Seminar Fees",Grocery stores
Buckinghamshire Council,31.03.2024,27.03.2024,Children's Services,Education & Childrens Services - CS Dir,POST OFFICE COUNTER,8.15,0,8.15,General Postage,Postal services
Buckinghamshire Council,31.03.2024,27.03.2024,Communities,Climate Change & Environment - Community,DVLA DRIVERS TACHOGRAPH W,32,0,32,Awaiting Coding,Government services
Buckinghamshire Council,31.03.2024,27.03.2024,Communities,Climate Change & Environment - Community,DVLA VEHICLE TAX,167.5,0,167.5,Awaiting Coding,Government services
Buckinghamshire Council,31.03.2024,27.03.2024,Communities,Climate Change & Environment - Community,DVLA VEHICLE TAX,452.5,0,452.5,Awaiting Coding,Government services
Buckinghamshire Council,31.03.2024,27.03.2024,Communities,Climate Change & Environment - Community,DVLA VEHICLE TAX,452.5,0,452.5,Awaiting Coding,Government services
Buckinghamshire Council,31.03.2024,27.03.2024,Communities,Climate Change & Environment - Community,DVLA VEHICLE TAX,452.5,0,452.5,Awaiting Coding,Government services
Buckinghamshire Council,31.03.2024,27.03.2024,Communities,Climate Change & Environment - Community,DVLA VEHICLE TAX,322.5,0,322.5,Awaiting Coding,Government services
Buckinghamshire Council,31.03.2024,27.03.2024,Communities,Climate Change & Environment - Community,DVLA VEHICLE TAX,452.5,0,452.5,Awaiting Coding,Government services
Buckinghamshire Council,31.03.2024,27.03.2024,Communities,Climate Change & Environment - Community,DVLA VEHICLE TAX,452.5,0,452.5,Awaiting Coding,Government services
Buckinghamshire Council,31.03.2024,27.03.2024,Communities,Climate Change & Environment - Community,DVLA VEHICLE TAX,322.5,0,322.5,Awaiting Coding,Government services
Buckinghamshire Council,31.03.2024,27.03.2024,"Planning, Growth & Sustainability",Housing & Homelessness & Regulatory PGS,LAND REGISTRY ECOM CCC,3,0,3,Homelessness,Government services
Buckinghamshire Council,31.03.2024,27.03.2024,"Planning, Growth & Sustainability",Housing & Homelessness & Regulatory PGS,LAND REGISTRY ECOM CCC,3,0,3,Homelessness,Government services
Buckinghamshire Council,31.03.2024,27.03.2024,Resources,AH&R - Res Dir,WWW.IRRV.ORG.UK,108,0,108,Subscriptions to National Bodies,Publishing & printing services
Buckinghamshire Council,31.03.2024,27.03.2024,Children's Services,Education & Childrens Services - CS Dir,TRAINLINE,24.89,0,24.89,Staff Travelling Expenses,Passenger railways
Buckinghamshire Council,31.03.2024,27.03.2024,Children's Services,Education & Childrens Services - CS Dir,TRAINLINE,49.88,0,49.88,Staff Travelling Expenses,Passenger railways
Buckinghamshire Council,31.03.2024,27.03.2024,Communities,Housing & Homelessness & Regulatory Comm,SHELL HAZLEMERE,45.17,0,45.17,Maintenance of Grounds,Service stations
Buckinghamshire Council,31.03.2024,27.03.2024,Adults and Health,Communities - Adults & Health,TESCO STORES 6747,4.75,0,4.75,Project Funding,Grocery stores
Buckinghamshire Council,31.03.2024,27.03.2024,Resources,AH&R - Res Dir,DUNELM - BUYATAB,100,0,100,Other Employees Expenses,
Buckinghamshire Council,31.03.2024,27.03.2024,Resources,AH&R - Res Dir,DUNELM - BUYATAB,100,0,100,Other Employees Expenses,
Buckinghamshire Council,31.03.2024,27.03.2024,"Planning, Growth & Sustainability",Planning & Regeneration - PGS,LABC,180,0,180,Course Fees & Post Entry Training,Membership organisations
Buckinghamshire Council,31.03.2024,27.03.2024,Children's Services,Education & Childrens Services - CS Dir,AMAZON.CO.UK,42.29,0,42.29,"Books, Records, Films & Oth Publications",Direct sales companies
Buckinghamshire Council,31.03.2024,27.03.2024,Communities,Transport - Communities Dir,TIMPSON LTD,141,0,141,Materials,Miscellaneous retail
Buckinghamshire Council,31.03.2024,27.03.2024,Children's Services,Education & Childrens Services - CS Dir,AMAZON.CO.UK,22.99,0,22.99,Stationery & Office Supplies,Direct sales companies
Buckinghamshire Council,31.03.2024,27.03.2024,Adults and Health,Health & Wellbeing - Adults & Health Dir,WWW.ADASS.ORG.UK,605,0,605,"Courses, Conference and Seminar Fees",Membership organisations
Buckinghamshire Council,31.03.2024,27.03.2024,Adults and Health,Health & Wellbeing - Adults & Health Dir,EXPEDIA HOTELSCOM72791523,130.95,0,130.95,"Courses, Conference and Seminar Fees",Travel agencies
Buckinghamshire Council,31.03.2024,27.03.2024,Adults and Health,Health & Wellbeing - Adults & Health Dir,WWW.ADASS.ORG.UK,290.4,0,290.4,"Courses, Conference and Seminar Fees",Membership organisations
Buckinghamshire Council,31.03.2024,27.03.2024,Children's Services,Education & Childrens Services - CS Dir,ODEON AYLESBURY,4.5,0,4.5,Awaiting Coding,Cinemas
Buckinghamshire Council,31.03.2024,27.03.2024,Children's Services,Education & Childrens Services - CS Dir,DUNELM SOFT FURNISHINGS,21.1,0,21.1,Other Equipment and Materials,Furniture & home furnishing
Buckinghamshire Council,31.03.2024,27.03.2024,Children's Services,Education & Childrens Services - CS Dir,THE RANGE,7.54,0,7.54,Other Equipment and Materials,Department stores
Buckinghamshire Council,31.03.2024,27.03.2024,Children's Services,Education & Childrens Services - CS Dir,HALFORDS 0529,9,0,9,Other Equipment and Materials,"Bicycle shops, sales & service"
Buckinghamshire Council,31.03.2024,27.03.2024,Children's Services,Education & Childrens Services - CS Dir,LINKEDIN ADS 10041249644,35.04,0,35.04,Advertising,Advertising services
Buckinghamshire Council,31.03.2024,27.03.2024,Children's Services,Education & Childrens Services - CS Dir,WWW.ARGOS.CO.UK,240,0,240,Leaving Care - Grants for Care Leavers,Department stores
Buckinghamshire Council,31.03.2024,27.03.2024,Children's Services,Education & Childrens Services - CS Dir,WF *UK4231788694,795.98,0,795.98,Leaving Care - Grants for Care Leavers,Furniture & home furnishing
Buckinghamshire Council,31.03.2024,27.03.2024,Children's Services,Education & Childrens Services - CS Dir,WWW.ARGOS.CO.UK,195.95,0,195.95,Leaving Care - Grants for Care Leavers,Department stores
Buckinghamshire Council,31.03.2024,27.03.2024,Adults and Health,Health & Wellbeing - Adults & Health Dir,TESCO STORES 2041,6.85,0,6.85,General Provisions (Food),Grocery stores
Buckinghamshire Council,31.03.2024,27.03.2024,Children's Services,Education & Childrens Services - CS Dir,AMAZON PRIME,8.99,0,8.99,Stationery & Office Supplies,Continuous subscriptions
Buckinghamshire Council,31.03.2024,27.03.2024,"Planning, Growth & Sustainability",Housing & Homelessness & Regulatory PGS,TRAVELODGE GB0000,303.95,0,303.95,Bed & Breakfast,Travelodge
Buckinghamshire Council,31.03.2024,27.03.2024,Children's Services,Education & Childrens Services - CS Dir,TRAINLINE,37.69,0,37.69,Staff Travelling Expenses,Passenger railways
Buckinghamshire Council,31.03.2024,27.03.2024,Adults and Health,Health & Wellbeing - Adults & Health Dir,TESCO STORES 2663,50.95,0,50.95,Activities & General Recreation,Grocery stores
Buckinghamshire Council,31.03.2024,27.03.2024,"Planning, Growth & Sustainability",Housing & Homelessness & Regulatory PGS,HPI INSTANT INK UK,11.99,0,11.99,Stationery & Office Supplies,Electronics shops
Buckinghamshire Council,31.03.2024,26.03.2024,Communities,Climate Change & Environment - Community,PAYPAL,17.16,0,17.16,Waste Prevention costs,Hardware stores
Buckinghamshire Council,31.03.2024,26.03.2024,Children's Services,Education & Childrens Services - CS Dir,PAYPAL,715,0,715,Leaving Care - Grants for Care Leavers,Variety stores
Buckinghamshire Council,31.03.2024,26.03.2024,Children's Services,Education & Childrens Services - CS Dir,PAYPAL,498.95,0,498.95,Leaving Care - Grants for Care Leavers,Variety stores
Buckinghamshire Council,31.03.2024,26.03.2024,Children's Services,Education & Childrens Services - CS Dir,AMAZON* 204-5113213-37,97.47,0,97.47,Activities & General Recreation,Misc. general merchandise
Buckinghamshire Council,31.03.2024,26.03.2024,Children's Services,Education & Childrens Services - CS Dir,LYNKPAY* 001 TAXIS,141.75,0,141.75,Sec 20/31: Transport,
Buckinghamshire Council,31.03.2024,26.03.2024,Communities,Housing & Homelessness & Regulatory PGS,JH HEATING & PLUMBING SER,75,15,90,Burial Costs,"Heating, plumbing & air conditioning"
Buckinghamshire Council,31.03.2024,26.03.2024,"Planning, Growth & Sustainability",Housing & Homelessness & Regulatory PGS,LAND REGISTRY ECOM CCC,3,0,3,Homelessness,Government services
Buckinghamshire Council,31.03.2024,26.03.2024,Adults and Health,Health & Wellbeing - Adults & Health Dir,WICKES BUILDING,112.5,22.5,135,"Courses, Conference and Seminar Fees",Timber & building supplies
Buckinghamshire Council,31.03.2024,26.03.2024,Adults and Health,Health & Wellbeing - Adults & Health Dir,DUNELM SOFTFURNISHINGS,49.5,0,49.5,"Courses, Conference and Seminar Fees",Furniture & home furnishing
Buckinghamshire Council,31.03.2024,26.03.2024,Adults and Health,Health & Wellbeing - Adults & Health Dir,WICKES BUILDING,-15,0,-15,"Courses, Conference and Seminar Fees",Timber & building supplies
Buckinghamshire Council,31.03.2024,26.03.2024,Resources,AH&R - Res Dir,POST OFFICE COUNTER,30,0,30,General Postage,Postal services
Buckinghamshire Council,31.03.2024,26.03.2024,Deputy Chief Executive,Communities - DCE,AO RETAIL LIMITED,80,0,80,Awaiting Coding,Household appliance stores
Buckinghamshire Council,31.03.2024,26.03.2024,Resources,AH&R - Res Dir,AMAZON.CO.UK,100,0,100,Miscellaneous (Other)  Expenses,Direct sales companies
Buckinghamshire Council,31.03.2024,26.03.2024,CC Obsolete Cost Centres,Obsolete Cost Centres,TRAINLINE,48.29,0,48.29,Staff Travelling Expenses,Passenger railways
Buckinghamshire Council,31.03.2024,26.03.2024,Adults and Health,Health & Wellbeing - Adults & Health Dir,NEW YORK DELI GATEHOUSE,58.08,0,58.08,Purchase.of Refreshments and Food,Restaurants
Buckinghamshire Council,31.03.2024,26.03.2024,Deputy Chief Executive,Leader - DCE,PUREGUSTO COFFEE COMPANY,62.48,0,62.48,General Provisions (Food),Misc. general merchandise
Buckinghamshire Council,31.03.2024,26.03.2024,Children's Services,Education & Childrens Services - CS Dir,HM PASSPORT OFFICE,53.5,0,53.5,Sec 20/31: Financial Assistance,Government services
Buckinghamshire Council,31.03.2024,26.03.2024,Communities,artnerships - Communities,WWW.TONERGIANT.CO.UK,176.64,0,176.64,Equipment,Misc Industrial supplies
Buckinghamshire Council,31.03.2024,26.03.2024,Adults and Health,Health & Wellbeing - Adults & Health Dir,TESCO STORES 2041,10,0,10,Payments To Contractors,Grocery stores
Buckinghamshire Council,31.03.2024,26.03.2024,"Planning, Growth & Sustainability",AH&R - PGS Dir,AMZNMKTPLACE,7.99,0,7.99,Administrative Equipment & Tools,Miscellaneous retail
Buckinghamshire Council,31.03.2024,26.03.2024,Children's Services,Education & Childrens Services - CS Dir,The Works,5.35,0,5.35,Subsistence,Restaurants
Buckinghamshire Council,31.03.2024,26.03.2024,Children's Services,Education & Childrens Services - CS Dir,PARTICIPANT UK LTD,120,0,120,Computer Support Services,Computer network information services
Buckinghamshire Council,31.03.2024,26.03.2024,Children's Services,Education & Childrens Services - CS Dir,CARDIFF COUNCIL EPAY,11,0,11,Sec 20/31: Specialist Services,Government services
Buckinghamshire Council,31.03.2024,26.03.2024,Adults and Health,Health & Wellbeing - Adults & Health Dir,BKG*HOTEL AT BOOKING.C,544.5,0,544.5,Other Short Term Support,Travel agencies
Buckinghamshire Council,31.03.2024,26.03.2024,Children's Services,Education & Childrens Services - CS Dir,O2 UK,10,0,10,Telephones,Phone equipment & sales
Buckinghamshire Council,31.03.2024,26.03.2024,Children's Services,Education & Childrens Services - CS Dir,TESCO STORES 2041,24.46,0,24.46,General Provisions (Food),Grocery stores
Buckinghamshire Council,31.03.2024,26.03.2024,Children's Services,Education & Childrens Services - CS Dir,TESCO STORES 2041,69.08,0,69.08,General Provisions (Food),Grocery stores
Buckinghamshire Council,31.03.2024,26.03.2024,Children's Services,Education & Childrens Services - CS Dir,B & Q 1305,27,0,27,Other Equipment and Materials,Home supply warehouse stores
Buckinghamshire Council,31.03.2024,26.03.2024,"Planning, Growth & Sustainability",AH&R - PGS Dir,AMAZON* 026-2605957-18,10.15,0,10.15,Awaiting Coding,Misc. general merchandise
Buckinghamshire Council,31.03.2024,26.03.2024,Deputy Chief Executive,AH&R- DCE Dir,IGPP LTD,597,119.4,716.4,Course Fees & Post Entry Training,Membership organisations
Buckinghamshire Council,31.03.2024,26.03.2024,"Planning, Growth & Sustainability",Planning & Regeneration - PGS,UBR* PENDING.UBER.COM,7.99,0,7.99,Staff Travelling Expenses,Taxicabs & limousines
Buckinghamshire Council,31.03.2024,26.03.2024,"Planning, Growth & Sustainability",Planning & Regeneration - PGS,SUMUP  *UNIQUE TAXI,8.1,0,8.1,Staff Travelling Expenses,Taxicabs & limousines
Buckinghamshire Council,31.03.2024,26.03.2024,"Planning, Growth & Sustainability",Planning & Regeneration - PGS,TESCO STORES 2640,5.4,0,5.4,General Provisions (Food),Grocery stores
Buckinghamshire Council,31.03.2024,26.03.2024,Children's Services,Education & Childrens Services - CS Dir,WWW.WOBURNSAFARI.CO.UK,53.98,0,53.98,Activities & General Recreation,Aquariums
Buckinghamshire Council,31.03.2024,26.03.2024,Children's Services,Education & Childrens Services - CS Dir,HOLLYWOOD BOWL,25.6,0,25.6,Activities & General Recreation,Bowling alleys
Buckinghamshire Council,31.03.2024,26.03.2024,Children's Services,Education & Childrens Services - CS Dir,FEVER UK* DOPAMINE LAN,54.98,0,54.98,Activities & General Recreation,"Bands, orchestras & misc entertainment"
Buckinghamshire Council,31.03.2024,26.03.2024,Children's Services,Education & Childrens Services - CS Dir,LONDON DUNGEON,196,0,196,Activities & General Recreation,Tourist attractions and exhibitions
Buckinghamshire Council,31.03.2024,26.03.2024,Children's Services,Education & Childrens Services - CS Dir,TRAINLINE,42.2,0,42.2,Staff Travelling Expenses,Passenger railways
Buckinghamshire Council,31.03.2024,26.03.2024,Communities,Culture & Leisure - Communities Dir,CANVA* I04102-57053014,99.99,0,99.99,Computer Software Licences & Purchase,Photographic studios
Buckinghamshire Council,31.03.2024,25.03.2024,Adults and Health,Health & Wellbeing - Adults & Health Dir,AMAZON* 204-4753995-00,546.23,0,546.23,"Courses, Conference and Seminar Fees",Misc. general merchandise
Buckinghamshire Council,31.03.2024,25.03.2024,Communities,Climate Change & Environment - Community,Helloprint United Kingdom,-118.9,0,-118.9,Photocopiers,Photocopy & reproduction services
Buckinghamshire Council,31.03.2024,25.03.2024,"Planning, Growth & Sustainability",Planning & Regeneration - PGS,TEXTANYWHERE,75.6,0,75.6,Computer Consumables,Computer software stores
Buckinghamshire Council,31.03.2024,25.03.2024,"Planning, Growth & Sustainability",Housing & Homelessness & Regulatory PGS,PREMIER INN,521,0,521,Homelessness,Premier Inn
Buckinghamshire Council,31.03.2024,25.03.2024,Adults and Health,Health & Wellbeing - Adults & Health Dir,TESCO STORES 2041,108.72,0,108.72,"Courses, Conference and Seminar Fees",Grocery stores
Buckinghamshire Council,31.03.2024,25.03.2024,CC Obsolete Cost Centres,Obsolete Cost Centres,trainline,24.79,0,24.79,Staff Travelling Expenses,Passenger railways
Buckinghamshire Council,31.03.2024,25.03.2024,Resources,AH&R - Res Dir,AMAZON.CO.UK,29.99,0,29.99,Stationery & Office Supplies,Direct sales companies
Buckinghamshire Council,31.03.2024,25.03.2024,"Planning, Growth & Sustainability",AH&R - PGS Dir,SCREWFIX DIR LTD,14.49,0,14.49,Other Equipment and Materials,Timber & building supplies
Buckinghamshire Council,31.03.2024,25.03.2024,"Planning, Growth & Sustainability",AH&R - PGS Dir,PRIME VIDEO CHANNELS,3.99,0,3.99,Other Equipment and Materials,Continuous subscriptions
Buckinghamshire Council,31.03.2024,25.03.2024,"Planning, Growth & Sustainability",AH&R - PGS Dir,ASDA SUPERSTORE,13.6,0,13.6,General Provisions (Food),Grocery stores
Buckinghamshire Council,31.03.2024,25.03.2024,Resources,AH&R - Res Dir,FREEDOM PROGRAMME LIMITED,12,0,12,Awaiting Coding,Schools
Buckinghamshire Council,31.03.2024,25.03.2024,Children's Services,Education & Childrens Services - CS Dir,TESCO STORES 2041,11.75,0,11.75,Miscellaneous (Other)  Expenses,Grocery stores
Buckinghamshire Council,31.03.2024,25.03.2024,Communities,artnerships - Communities,WWW.BUCKINGHAMSHIRE.GOV,57.72,0,57.72,Miscellaneous (Other)  Expenses,Government services
Buckinghamshire Council,31.03.2024,25.03.2024,Children's Services,Education & Childrens Services - CS Dir,TESCO STORES 2020,193.92,0,193.92,Consumable Supplies,Grocery stores
Buckinghamshire Council,31.03.2024,25.03.2024,Children's Services,Education & Childrens Services - CS Dir,TESCO STORES 2020,-193.92,0,-193.92,Consumable Supplies,Grocery stores
Buckinghamshire Council,31.03.2024,25.03.2024,Children's Services,Education & Childrens Services - CS Dir,New York Deli Gatehouse,1.25,0,1.25,Subsistence,Restaurants
Buckinghamshire Council,31.03.2024,25.03.2024,Resources,Communities - Resources,NEW YORK DELI GATEHOUSE,36,0,36,Internal Training,Restaurants
Buckinghamshire Council,31.03.2024,25.03.2024,Children's Services,Education & Childrens Services - CS Dir,AMAZON* 204-4415501-43,159.48,0,159.48,Miscellaneous (Other)  Expenses,Misc. general merchandise
Buckinghamshire Council,31.03.2024,25.03.2024,Communities,Climate Change & Environment - Community,THE RANGE,33.46,0,33.46,Waste Prevention costs,Department stores
Buckinghamshire Council,31.03.2024,25.03.2024,Communities,Climate Change & Environment - Community,HELLOPRINT UNITED KINGDOM,349.19,0,349.19,Photocopiers,Photocopy & reproduction services
Buckinghamshire Council,31.03.2024,25.03.2024,Communities,Climate Change & Environment - Community,HELLOPRINT UNITED KINGDOM,140.67,0,140.67,Photocopiers,Photocopy & reproduction services
Buckinghamshire Council,31.03.2024,25.03.2024,Resources,AH&R - Res Dir,Amazon Prime,8.99,0,8.99,Stationery & Office Supplies,Continuous subscriptions
Buckinghamshire Council,31.03.2024,25.03.2024,Communities,Culture & Leisure - Communities Dir,HTTPS://ENERGYPERFORMA,685,0,685,Contingency,Misc business services
Buckinghamshire Council,31.03.2024,25.03.2024,Communities,Culture & Leisure - Communities Dir,HTTPS://ENERGYPERFORMA,595,0,595,Contingency,Misc business services
Buckinghamshire Council,31.03.2024,25.03.2024,Children's Services,Education & Childrens Services - CS Dir,SUMUP  *BUDGET CARS LT,30,0,30,Sec 17: Transport,Taxicabs & limousines
Buckinghamshire Council,31.03.2024,25.03.2024,Children's Services,Education & Childrens Services - CS Dir,AMAZON* 206-7269333-65,16.32,0,16.32,Awaiting Coding,Misc. general merchandise
Buckinghamshire Council,31.03.2024,25.03.2024,Children's Services,Education & Childrens Services - CS Dir,AMAZON* 206-7269333-65,26.91,0,26.91,Awaiting Coding,Misc. general merchandise
Buckinghamshire Council,31.03.2024,25.03.2024,"Planning, Growth & Sustainability",Climate Change & Environment - PGS,FACEBK *K3CFAXTG22,79.98,0,79.98,Advertising,Advertising services
Buckinghamshire Council,31.03.2024,25.03.2024,Children's Services,Education & Childrens Services - CS Dir,WWW.JOHNLEWIS.COM,449,0,449,Leaving Care - Grants for Care Leavers,Department stores
Buckinghamshire Council,31.03.2024,25.03.2024,Children's Services,Education & Childrens Services - CS Dir,WWW.WEAREHOMESFORSTUDE,"1,955.00",0,"1,955.00",Leaving Care - Higher Education Supp,Estate Agents & Property Management
Buckinghamshire Council,31.03.2024,25.03.2024,Children's Services,Education & Childrens Services - CS Dir,MARKS&SPENCER PLC,"1,364.10",0,"1,364.10",Leaving Care - Grants for Care Leavers,Grocery stores
Buckinghamshire Council,31.03.2024,25.03.2024,Children's Services,Education & Childrens Services - CS Dir,ASDA GEORGE COM LEEDS,-14,0,-14,Leaving Care - Grants for Care Leavers,Grocery stores
Buckinghamshire Council,31.03.2024,25.03.2024,Adults and Health,Health & Wellbeing - Adults & Health Dir,TESCO STORES 5135,124.91,0,124.91,General Provisions (Food),Grocery stores
Buckinghamshire Council,31.03.2024,25.03.2024,Adults and Health,Health & Wellbeing - Adults & Health Dir,BOOKER LTD - 38534944,242.77,0,242.77,General Provisions (Food),Grocery stores
Buckinghamshire Council,31.03.2024,25.03.2024,"Planning, Growth & Sustainability",Housing & Homelessness & Regulatory PGS,PREMIER INN,265,0,265,Homelessness,Premier Inn
Buckinghamshire Council,31.03.2024,25.03.2024,Children's Services,Education & Childrens Services - CS Dir,MOL*HERBIES PIZZA UK LTD,19.99,0,19.99,Miscellaneous (Other)  Expenses,Fast food restaurants
Buckinghamshire Council,31.03.2024,25.03.2024,Adults and Health,Health & Wellbeing - Adults & Health Dir,ASDA GROCERIES ONLINE,105.69,0,105.69,General Provisions (Food),Grocery stores
Buckinghamshire Council,31.03.2024,25.03.2024,Adults and Health,Health & Wellbeing - Adults & Health Dir,AMAZON* 204-3184317-86,216.99,0,216.99,"Courses, Conference and Seminar Fees",Misc. general merchandise
Buckinghamshire Council,31.03.2024,25.03.2024,Children's Services,Education & Childrens Services - CS Dir,AMAZON* 204-6564695-08,300.26,0,300.26,Miscellaneous (Other)  Expenses,Misc. general merchandise
Buckinghamshire Council,31.03.2024,25.03.2024,Children's Services,Education & Childrens Services - CS Dir,AMAZON* 206-4422654-13,299.99,0,299.99,Administrative Equipment & Tools,Misc. general merchandise
Buckinghamshire Council,31.03.2024,25.03.2024,Children's Services,Education & Childrens Services - CS Dir,PARADIGM HOUSING GROUP,134.21,0,134.21,Leaving Care - Rent,Government services
Buckinghamshire Council,31.03.2024,23.03.2024,Communities,Transport - Communities Dir,DVLA DUPLICATE V5C MID,25,0,25,Vehicle Hire,Government services
Buckinghamshire Council,31.03.2024,23.03.2024,Adults and Health,Communities - Adults & Health,COSTCO WHOLESALE #115,28.46,0,28.46,Project Funding,Buying & shopping services/clubs
Buckinghamshire Council,31.03.2024,23.03.2024,Children's Services,Education & Childrens Services - CS Dir,AMZNMKTPLACE,19.99,0,19.99,"Books, Records, Films & Oth Publications",Miscellaneous retail
Buckinghamshire Council,31.03.2024,23.03.2024,Deputy Chief Executive,Leader - DCE,TELEGRAPH SUBSCRIPTION,14.99,0,14.99,"Books, Records, Films & Oth Publications",Continuous subscriptions
Buckinghamshire Council,31.03.2024,23.03.2024,Deputy Chief Executive,Leader - DCE,TIMES NEWSPAPERS LTD,26,0,26,"Books, Records, Films & Oth Publications","Books, periodicals & newspapers"
Buckinghamshire Council,31.03.2024,23.03.2024,Adults and Health,Communities - Adults & Health,DNH*GO DADDY EUROPE GBP,71.89,0,71.89,Computer Support Services,Computer network information services
Buckinghamshire Council,31.03.2024,23.03.2024,Resources,AH&R - Res Dir,PADDLE.NET* TEAMGANTT,57.99,0,57.99,Software Support,
Buckinghamshire Council,31.03.2024,23.03.2024,Communities,Transport - Communities Dir,POST OFFICE COUNTER,8.44,0,8.44,General Postage,Postal services
Buckinghamshire Council,31.03.2024,22.03.2024,Children's Services,Education & Childrens Services - CS Dir,AMAZON.CO.UK,21.69,0,21.69,Miscellaneous (Other)  Expenses,Direct sales companies
Buckinghamshire Council,31.03.2024,22.03.2024,Children's Services,Education & Childrens Services - CS Dir,BUDGETLINE,576,0,576,Sec 20/31: Transport,Taxicabs & limousines
Buckinghamshire Council,31.03.2024,22.03.2024,Children's Services,Education & Childrens Services - CS Dir,TRAINLINE,137.49,0,137.49,Sec 20/31: Supp for Contact,Passenger railways
Buckinghamshire Council,31.03.2024,22.03.2024,Children's Services,Education & Childrens Services - CS Dir,TRAINLINE,67.49,0,67.49,Sec 20/31: Supp for Contact,Passenger railways
Buckinghamshire Council,31.03.2024,22.03.2024,Children's Services,Education & Childrens Services - CS Dir,TRAINLINE,72.49,0,72.49,Sec 20/31: Supp for Contact,Passenger railways
Buckinghamshire Council,31.03.2024,22.03.2024,Children's Services,Education & Childrens Services - CS Dir,TRAINLINE,-135,0,-135,Sec 20/31: Supp for Contact,Passenger railways
Buckinghamshire Council,31.03.2024,22.03.2024,"Planning, Growth & Sustainability",Housing & Homelessness & Regulatory PGS,LAND REGISTRY ECOM CCC,3,0,3,Homelessness,Government services
Buckinghamshire Council,31.03.2024,22.03.2024,Children's Services,Education & Childrens Services - CS Dir,SUMUP  *RONALD FLETCHER &,372.25,0,372.25,Leaving Care  - Financial Assistance,Professional services
Buckinghamshire Council,31.03.2024,22.03.2024,Children's Services,Education & Childrens Services - CS Dir,AMAZON* 205-9902681-16,165.99,0,165.99,Leaving Care - Grants for Care Leavers,Misc. general merchandise
Buckinghamshire Council,31.03.2024,22.03.2024,Deputy Chief Executive,AH&R- DCE Dir,AMAZON* 204-5195191-82,61.18,0,61.18,IT Equipment Maintenance,Misc. general merchandise
Buckinghamshire Council,31.03.2024,22.03.2024,Resources,AH&R - Res Dir,"GITHUB, INC.",3.26,0,3.26,Computer Support Services,"Programming, data processing & system design"
Buckinghamshire Council,31.03.2024,22.03.2024,Children's Services,Education & Childrens Services - CS Dir,SKYLINE TAXIS,20,0,20,Sec 20/31: Transport,Taxicabs & limousines
Buckinghamshire Council,31.03.2024,22.03.2024,Children's Services,Education & Childrens Services - CS Dir,SKYLINE TAXIS,20,0,20,Sec 20/31: Transport,Taxicabs & limousines
Buckinghamshire Council,31.03.2024,22.03.2024,Children's Services,Education & Childrens Services - CS Dir,SKYLINE TAXIS,20,0,20,Sec 20/31: Transport,Taxicabs & limousines
Buckinghamshire Council,31.03.2024,22.03.2024,Children's Services,Education & Childrens Services - CS Dir,SKYLINE TAXIS,20,0,20,Sec 20/31: Transport,Taxicabs & limousines
Buckinghamshire Council,31.03.2024,22.03.2024,"Planning, Growth & Sustainability",AH&R - PGS Dir,Amazon.co.uk,179.99,0,179.99,Stationery & Office Supplies,Direct sales companies
Buckinghamshire Council,31.03.2024,22.03.2024,Communities,Transport - Communities Dir,PARKING CO OFF,1.1,0,1.1,Repair and Maintenance of Equipment,Car parking & garages
Buckinghamshire Council,31.03.2024,22.03.2024,Children's Services,Education & Childrens Services - CS Dir,TRAINLINE,49.88,0,49.88,Sec 20/31: Financial Assistance,Passenger railways
Buckinghamshire Council,31.03.2024,22.03.2024,Communities,Special Expenses,HERMEQ,493.15,0,493.15,Maintenance of Grounds,Home supply warehouse stores
Buckinghamshire Council,31.03.2024,22.03.2024,Children's Services,Education & Childrens Services - CS Dir,AMAZON* 204-2929074-20,21.99,0,21.99,Equipment (including storage),Misc. general merchandise
Buckinghamshire Council,31.03.2024,22.03.2024,Children's Services,Education & Childrens Services - CS Dir,WWW.ARGOS.CO.UK,25,0,25,Furniture,Department stores
Buckinghamshire Council,31.03.2024,22.03.2024,Children's Services,Education & Childrens Services - CS Dir,DUNELM SOFTFURNISHINGS,33.95,0,33.95,Leaving Care - Grants for Care Leavers,Furniture & home furnishing
Buckinghamshire Council,31.03.2024,22.03.2024,Children's Services,Education & Childrens Services - CS Dir,HOMEBASE.CO.UK,101.4,0,101.4,Leaving Care - Grants for Care Leavers,Home supply warehouse stores
Buckinghamshire Council,31.03.2024,22.03.2024,Resources,AH&R - Res Dir,PAYPAL,"1,281.60",0,"1,281.60",Computer Software Licences & Purchase,Advertising services
Buckinghamshire Council,31.03.2024,22.03.2024,Resources,AH&R - Res Dir,AMAZON.CO.UK,69,0,69,Stationery & Office Supplies,Direct sales companies
Buckinghamshire Council,31.03.2024,22.03.2024,"Planning, Growth & Sustainability",Housing & Homelessness & Regulatory PGS,HOME BARGAINS,19.8,0,19.8,Other General Office Expenses,Misc. general merchandise
Buckinghamshire Council,31.03.2024,22.03.2024,Adults and Health,Health & Wellbeing - Adults & Health Dir,SWAN RIDER,744,0,744,Staff Travelling Expenses,Transportation services
Buckinghamshire Council,31.03.2024,22.03.2024,"Planning, Growth & Sustainability",Housing & Homelessness & Regulatory PGS,AMAZON* 204-5820068-13,25.99,0,25.99,Other General Office Expenses,Misc. general merchandise
Buckinghamshire Council,31.03.2024,21.03.2024,"Planning, Growth & Sustainability",Housing & Homelessness & Regulatory PGS,PREMIER INN,613,0,613,Homelessness,Premier Inn
Buckinghamshire Council,31.03.2024,21.03.2024,"Planning, Growth & Sustainability",Housing & Homelessness & Regulatory PGS,PREMIER INN,500,0,500,Homelessness,Premier Inn
Buckinghamshire Council,31.03.2024,21.03.2024,"Planning, Growth & Sustainability",Housing & Homelessness & Regulatory PGS,PREMIER INN,160,0,160,Homelessness,Premier Inn
Buckinghamshire Council,31.03.2024,21.03.2024,Adults and Health,Health & Wellbeing - Adults & Health Dir,ASDA SUPERSTORE,5.8,0,5.8,General Provisions (Food),Grocery stores
Buckinghamshire Council,31.03.2024,21.03.2024,Adults and Health,Health & Wellbeing - Adults & Health Dir,LYRECO UK LTD,23.85,4.77,28.62,Stationery & Office Supplies,Stationery & office supplies
Buckinghamshire Council,31.03.2024,21.03.2024,Adults and Health,Health & Wellbeing - Adults & Health Dir,LYRECO UK LTD,0.02,0,0.02,Stationery & Office Supplies,Stationery & office supplies
Buckinghamshire Council,31.03.2024,21.03.2024,Adults and Health,Health & Wellbeing - Adults & Health Dir,AMAZON* 204-2473657-77,89.91,0,89.91,"Courses, Conference and Seminar Fees",Misc. general merchandise
Buckinghamshire Council,31.03.2024,21.03.2024,Adults and Health,Health & Wellbeing - Adults & Health Dir,IKEA LTD SHOP ONLINE,151.87,30.38,182.25,"Courses, Conference and Seminar Fees",Furniture & home furnishing
Buckinghamshire Council,31.03.2024,21.03.2024,Communities,Housing & Homelessness & Regulatory PGS,JH HEATING ENGINEERING,75,15,90,Burial Costs,"Heating, plumbing & air conditioning"
Buckinghamshire Council,31.03.2024,21.03.2024,Communities,Climate Change & Environment - Community,FR BALL,242.7,0,242.7,Waste Prevention costs,"Insurance sales, underwritering, premiums"
Buckinghamshire Council,31.03.2024,21.03.2024,Children's Services,Education & Childrens Services - CS Dir,SLOUGH B/C ATP,11,0,11,Sec 20/31: Financial Assistance One Off,Government services
Buckinghamshire Council,31.03.2024,21.03.2024,Children's Services,Education & Childrens Services - CS Dir,A1 TAXI SERVICE,-66,0,-66,Sec 20/31: Transport,Taxicabs & limousines
Buckinghamshire Council,31.03.2024,21.03.2024,Children's Services,Education & Childrens Services - CS Dir,TRAINLINE,34.1,0,34.1,Sec 20/31: Supp for Contact,Passenger railways
Buckinghamshire Council,31.03.2024,21.03.2024,Children's Services,Education & Childrens Services - CS Dir,CURRYS BUSINESS,43.95,8.79,52.74,Computer Consumables,Computer software stores
Buckinghamshire Council,31.03.2024,21.03.2024,Children's Services,Education & Childrens Services - CS Dir,CURRYS BUSINESS,0.04,0,0.04,Computer Consumables,Computer software stores
Buckinghamshire Council,31.03.2024,21.03.2024,Children's Services,Education & Childrens Services - CS Dir,WWW.JOHNLEWIS.COM,995,199,"1,194.00",Computer Consumables,Department stores
Buckinghamshire Council,31.03.2024,21.03.2024,Deputy Chief Executive,Leader - DCE,THE MJ/HEMMING GROUP L,249,0,249,Subscriptions to National Bodies,
Buckinghamshire Council,31.03.2024,21.03.2024,Deputy Chief Executive,Leader - DCE,SAINSBURY S S/MKTS,7.7,0,7.7,General Provisions (Food),Grocery stores
Buckinghamshire Council,31.03.2024,21.03.2024,"Planning, Growth & Sustainability",AH&R - PGS Dir,ICELAND,8.1,0,8.1,General Provisions (Food),Grocery stores
Buckinghamshire Council,31.03.2024,21.03.2024,Communities,Transport - Communities Dir,PARKING-CORNWALLS MEADOW,0.6,0,0.6,Repair and Maintenance of Equipment,Car parking & garages
Buckinghamshire Council,31.03.2024,21.03.2024,Communities,Transport - Communities Dir,PARKING-CORNWALLS MEADOW,0.6,0,0.6,Repair and Maintenance of Equipment,Car parking & garages
Buckinghamshire Council,31.03.2024,21.03.2024,Communities,Transport - Communities Dir,PARKING-WENDOVER LIB C/P,0.6,0,0.6,Repair and Maintenance of Equipment,Car parking & garages
Buckinghamshire Council,31.03.2024,21.03.2024,Communities,Transport - Communities Dir,PARKING-WENDOVER LIB C/P,0.6,0,0.6,Repair and Maintenance of Equipment,Car parking & garages
Buckinghamshire Council,31.03.2024,21.03.2024,Communities,Transport - Communities Dir,TOOLSTATION LTD,30.63,0,30.63,Equipment,Timber & building supplies
Buckinghamshire Council,31.03.2024,21.03.2024,Children's Services,Education & Childrens Services - CS Dir,AMAZON* 204-3293725-79,19.58,0,19.58,Equipment (including storage),Misc. general merchandise
Buckinghamshire Council,31.03.2024,21.03.2024,Children's Services,Education & Childrens Services - CS Dir,AMAZON* 204-9020076-59,12.99,0,12.99,Miscellaneous (Other)  Expenses,Misc. general merchandise
Buckinghamshire Council,31.03.2024,21.03.2024,Children's Services,Education & Childrens Services - CS Dir,FOCUSRITE NOVATION,69.99,0,69.99,Miscellaneous (Other)  Expenses,Misc Durable goods
Buckinghamshire Council,31.03.2024,21.03.2024,Children's Services,Education & Childrens Services - CS Dir,WWW.GUITARGUITAR.CO.UK,13.98,0,13.98,Miscellaneous (Other)  Expenses,Music stores & instruments
Buckinghamshire Council,31.03.2024,21.03.2024,Children's Services,Education & Childrens Services - CS Dir,AMAZON* 204-1570824-32,16.61,0,16.61,Furniture,Misc. general merchandise
Buckinghamshire Council,31.03.2024,21.03.2024,Children's Services,Education & Childrens Services - CS Dir,AMAZON* 204-4980102-35,6.99,0,6.99,Furniture,Misc. general merchandise
Buckinghamshire Council,31.03.2024,21.03.2024,Deputy Chief Executive,Communities - DCE,DECATHLON UK LIMITED,499.09,0,499.09,Payments - Other Bodies,Sporting goods shops
Buckinghamshire Council,31.03.2024,21.03.2024,Children's Services,Education & Childrens Services - CS Dir,TESCO STORES 2041,58.45,0,58.45,Awaiting Coding,Grocery stores
Buckinghamshire Council,31.03.2024,21.03.2024,Deputy Chief Executive,Leader - DCE,FACEBK 9PGPA38YS2,840,0,840,Advertising,Advertising services
Buckinghamshire Council,31.03.2024,21.03.2024,Children's Services,Education & Childrens Services - CS Dir,LINKEDIN ADS 10023446304,93.97,0,93.97,Advertising,Advertising services
Buckinghamshire Council,31.03.2024,21.03.2024,Communities,Culture & Leisure - Communities Dir,HIGH SPEED TRAINING,37.2,0,37.2,Course Fees & Post Entry Training,Schools
Buckinghamshire Council,31.03.2024,21.03.2024,Children's Services,Education & Childrens Services - CS Dir,STUDENT ROOST,818.57,0,818.57,Leaving Care - Higher Education Supp,Estate Agents & Property Management
Buckinghamshire Council,31.03.2024,21.03.2024,Children's Services,Education & Childrens Services - CS Dir,KOZZYBEDS,479,0,479,Leaving Care - Grants for Care Leavers,Furniture & home furnishing
Buckinghamshire Council,31.03.2024,21.03.2024,Children's Services,Education & Childrens Services - CS Dir,SP HOMEDETAIL GRS GADG,529,0,529,Leaving Care - Grants for Care Leavers,Furniture & home furnishing
Buckinghamshire Council,31.03.2024,21.03.2024,Communities,Culture & Leisure - Communities Dir,AMAZON* 204-9281363-82,67.98,0,67.98,Events Expenditure,Misc. general merchandise
Buckinghamshire Council,31.03.2024,21.03.2024,Communities,Culture & Leisure - Communities Dir,HIGH SPEED TRAINING,37.2,0,37.2,Course Fees & Post Entry Training,Schools
Buckinghamshire Council,31.03.2024,21.03.2024,"Planning, Growth & Sustainability",Planning & Regeneration - PGS,THE BELL HOTEL - RECEP,487.2,0,487.2,"Courses, Conference and Seminar Fees","Hotels, motels & resorts"
Buckinghamshire Council,31.03.2024,21.03.2024,"Planning, Growth & Sustainability",Housing & Homelessness & Regulatory PGS,SAVERS HEALTH & BEAUTY,4,0,4,Other General Office Expenses,Chemists & pharmacies
Buckinghamshire Council,31.03.2024,21.03.2024,Communities,Climate Change & Environment - Community,AMAZON* 204-1262580-75,122.5,0,122.5,Equipment,Misc. general merchandise
Buckinghamshire Council,31.03.2024,21.03.2024,Children's Services,Education & Childrens Services - CS Dir,BUCKINGHAMSHIRE CNCL,44,0,44,Sec 20/31: Supp for Contact,Government services
Buckinghamshire Council,31.03.2024,21.03.2024,Communities,Housing & Homelessness & Regulatory Comm,E.ON NEXT,20.55,0,20.55,Electricity,Utilities
Buckinghamshire Council,31.03.2024,21.03.2024,Communities,Housing & Homelessness & Regulatory Comm,BRITISH GAS,32.15,0,32.15,Gas,Utilities
Buckinghamshire Council,31.03.2024,21.03.2024,Adults and Health,Health & Wellbeing - Adults & Health Dir,WM MORRISONS STORE,10.17,0,10.17,Activities & General Recreation,Grocery stores
Buckinghamshire Council,31.03.2024,21.03.2024,Adults and Health,Health & Wellbeing - Adults & Health Dir,WM MORRISONS STORE,7.6,0,7.6,General Provisions (Food),Grocery stores
Buckinghamshire Council,31.03.2024,21.03.2024,Communities,Climate Change & Environment - Community,HATT ADVENTURES,-70,0,-70,Equipment,Misc. general merchandise
Buckinghamshire Council,31.03.2024,21.03.2024,Children's Services,Education & Childrens Services - CS Dir,GEAR4MUSIC LIMITED,85.48,0,85.48,Miscellaneous (Other)  Expenses,Music stores & instruments
Buckinghamshire Council,31.03.2024,21.03.2024,Resources,AH&R - Res Dir,CANVA* 04097-36463747,107.88,0,107.88,Computer Software Licences & Purchase,"Commercial photo, art & graphic"
Buckinghamshire Council,31.03.2024,20.03.2024,"Planning, Growth & Sustainability",Planning & Regeneration - PGS,AMAZON* 204-6817587-63,13.18,0,13.18,Administrative Equipment & Tools,Misc. general merchandise
Buckinghamshire Council,31.03.2024,20.03.2024,Children's Services,Education & Childrens Services - CS Dir,LYNKPAY* 001 TAXIS,141.75,0,141.75,Sec 20/31: Transport,
Buckinghamshire Council,31.03.2024,20.03.2024,Children's Services,Education & Childrens Services - CS Dir,LYNKPAY* 001 TAXIS,141.75,0,141.75,Sec 20/31: Transport,
Buckinghamshire Council,31.03.2024,20.03.2024,Children's Services,Education & Childrens Services - CS Dir,AMAZON* 204-6586033-62,24.21,0,24.21,Awaiting Coding,Misc. general merchandise
Buckinghamshire Council,31.03.2024,20.03.2024,Children's Services,Education & Childrens Services - CS Dir,AMAZON* 204-7381163-27,18.99,0,18.99,Awaiting Coding,Misc. general merchandise
Buckinghamshire Council,31.03.2024,20.03.2024,Children's Services,Education & Childrens Services - CS Dir,AMZNMktplace,9.49,0,9.49,Awaiting Coding,Miscellaneous retail
Buckinghamshire Council,31.03.2024,20.03.2024,Children's Services,Education & Childrens Services - CS Dir,AMZNMktplace,20.76,0,20.76,Awaiting Coding,Miscellaneous retail
Buckinghamshire Council,31.03.2024,20.03.2024,Children's Services,Education & Childrens Services - CS Dir,TRAINLINE,232.29,0,232.29,Sec 20/31: Supp for Contact,Passenger railways
Buckinghamshire Council,31.03.2024,20.03.2024,Resources,AH&R - Res Dir,CROWNE PLAZA HOTELS,189.15,0,189.15,"Courses, Conference and Seminar Fees",Crowne Plaza Hotels
Buckinghamshire Council,31.03.2024,20.03.2024,Resources,AH&R - Res Dir,CROWNE PLAZA HOTELS,189.15,0,189.15,"Courses, Conference and Seminar Fees",Crowne Plaza Hotels
Buckinghamshire Council,31.03.2024,20.03.2024,Communities,Climate Change & Environment - Community,SP ZEROWASTEBAG UK,390,0,390,Waste Prevention costs,Misc business services
Buckinghamshire Council,31.03.2024,20.03.2024,Children's Services,Education & Childrens Services - CS Dir,TRAVELODGE GB0000,97.01,0,97.01,"Courses, Conference and Seminar Fees",Travelodge
Buckinghamshire Council,31.03.2024,20.03.2024,"Planning, Growth & Sustainability",AH&R - PGS Dir,WICKES AYLESBURY,46.3,0,46.3,General Repairs & Maintenance,Timber & building supplies
Buckinghamshire Council,31.03.2024,20.03.2024,"Planning, Growth & Sustainability",AH&R - PGS Dir,LOCK & KEY CENTRE,132.77,0,132.77,Professional Services (non curriculum) - External,Professional services
Buckinghamshire Council,31.03.2024,20.03.2024,Resources,AH&R - Res Dir,ROYAL MAIL GROUP LTD,12.65,0,12.65,General Postage,Postal services
Buckinghamshire Council,31.03.2024,20.03.2024,Children's Services,Education & Childrens Services - CS Dir,A1 TAXI SERVICE,168,0,168,Court Orders Sec 31: Transport to School,Taxicabs & limousines
Buckinghamshire Council,31.03.2024,20.03.2024,Communities,Culture & Leisure - Communities Dir,HIGH SPEED TRAINING,31,6.2,37.2,Administrative Equipment & Tools,Schools
Buckinghamshire Council,31.03.2024,20.03.2024,Communities,artnerships - Communities,TZATZIKI 34,11,0,11,Equipment,Restaurants
Buckinghamshire Council,31.03.2024,20.03.2024,Children's Services,Education & Childrens Services - CS Dir,SP OUTDOORTOYS.COM,142.99,0,142.99,Activities & General Recreation,"Hobby, toy & game shops"
Buckinghamshire Council,31.03.2024,20.03.2024,Children's Services,Education & Childrens Services - CS Dir,AMAZON* 204-5341010-21,115.8,0,115.8,Consumable Supplies,Misc. general merchandise
Buckinghamshire Council,31.03.2024,20.03.2024,Communities,Culture & Leisure - Communities Dir,PRINT WORLD,57.6,0,57.6,Administrative Equipment & Tools,Stationery & office supplies stores
Buckinghamshire Council,31.03.2024,20.03.2024,Children's Services,Education & Childrens Services - CS Dir,AO RETAIL LIMITED,639,0,639,Other Equipment and Materials,Household appliance stores
Buckinghamshire Council,31.03.2024,20.03.2024,Children's Services,Education & Childrens Services - CS Dir,AMAZON* 204-4659779-05,101.01,0,101.01,Furniture,Misc. general merchandise
Buckinghamshire Council,31.03.2024,20.03.2024,Communities,Transport - Communities Dir,AMAZON* 204-7699095-95,79.98,0,79.98,Area Teams and Materials,Misc. general merchandise
Buckinghamshire Council,31.03.2024,20.03.2024,Children's Services,Education & Childrens Services - CS Dir,AMAZON.CO.UK,5.95,0,5.95,Stationery & Office Supplies,Direct sales companies
Buckinghamshire Council,31.03.2024,20.03.2024,Children's Services,Education & Childrens Services - CS Dir,AMZNMKTPLACE,52.78,0,52.78,Furniture,Miscellaneous retail
Buckinghamshire Council,31.03.2024,20.03.2024,Communities,Climate Change & Environment - Community,POST OFFICE COUNTER,24.17,0,24.17,Stationery & Office Supplies,Postal services
Buckinghamshire Council,31.03.2024,20.03.2024,Communities,Culture & Leisure - Communities Dir,EURO CAR PARTS P,39.8,7.96,47.76,Repair & Maint of Vehicles & Plant,Automotive parts & accessories
Buckinghamshire Council,31.03.2024,20.03.2024,Communities,Culture & Leisure - Communities Dir,EURO CAR PARTS P,0.02,0,0.02,Repair & Maint of Vehicles & Plant,Automotive parts & accessories
Buckinghamshire Council,31.03.2024,20.03.2024,Children's Services,Education & Childrens Services - CS Dir,TESCO STORES 2038,30.95,0,30.95,General Provisions (Food),Grocery stores
Buckinghamshire Council,31.03.2024,20.03.2024,Children's Services,Education & Childrens Services - CS Dir,LINKEDIN ADS 10019161754,106.6,0,106.6,Advertising,Advertising services
Buckinghamshire Council,31.03.2024,20.03.2024,Children's Services,Education & Childrens Services - CS Dir,AMAZON* 203-8971515-91,102.84,0,102.84,Leaving Care - Grants for Care Leavers,Misc. general merchandise
Buckinghamshire Council,31.03.2024,20.03.2024,Children's Services,Education & Childrens Services - CS Dir,RIGHT CHOICE CARPETS AND,980,0,980,Leaving Care - Grants for Care Leavers,Floor covering stores
Buckinghamshire Council,31.03.2024,20.03.2024,Children's Services,Education & Childrens Services - CS Dir,AO RETAIL LIMITED,"1,057.00",0,"1,057.00",Leaving Care - Grants for Care Leavers,Household appliance stores
Buckinghamshire Council,31.03.2024,20.03.2024,Children's Services,Education & Childrens Services - CS Dir,PAYPAL,-45,0,-45,Leaving Care - Grants for Care Leavers,Variety stores
Buckinghamshire Council,31.03.2024,20.03.2024,Children's Services,Education & Childrens Services - CS Dir,AO RETAIL LIMITED,-90,0,-90,Leaving Care - Grants for Care Leavers,Household appliance stores
Buckinghamshire Council,31.03.2024,20.03.2024,Children's Services,Education & Childrens Services - CS Dir,TEST METER GROUP LTD.,25.45,5.09,30.54,Health & Safety Supplies & Services,Misc commercial machines equipment
Buckinghamshire Council,31.03.2024,20.03.2024,Children's Services,Education & Childrens Services - CS Dir,PASS  PORTABLE APPLIAN,124.1,24.82,148.92,Health & Safety Supplies & Services,Testing labs (non-medical)
Buckinghamshire Council,31.03.2024,20.03.2024,Children's Services,Education & Childrens Services - CS Dir,PASS  PORTABLE APPLIAN,311.76,0,311.76,Health & Safety Supplies & Services,Testing labs (non-medical)
Buckinghamshire Council,31.03.2024,20.03.2024,Children's Services,Education & Childrens Services - CS Dir,SP HAWKINSPORT,27,0,27,Other Personal Needs,Sporting goods shops
Buckinghamshire Council,31.03.2024,20.03.2024,"Planning, Growth & Sustainability",Housing & Homelessness & Regulatory PGS,THE STATIONERY OFFICE,59.04,0,59.04,Advertising,Publishing & printing services
Buckinghamshire Council,31.03.2024,20.03.2024,Adults and Health,Health & Wellbeing - Adults & Health Dir,CARTRIDGEPEOPLE.COM,345.8,69.16,414.96,Stationery & Office Supplies,Stationery & office supplies
Buckinghamshire Council,31.03.2024,20.03.2024,Adults and Health,Health & Wellbeing - Adults & Health Dir,CARTRIDGEPEOPLE.COM,0.03,0,0.03,Stationery & Office Supplies,Stationery & office supplies
Buckinghamshire Council,31.03.2024,20.03.2024,Communities,Climate Change & Environment - Community,PREMIER INN,562.45,112.49,674.94,Other Employees Expenses,Premier Inn
Buckinghamshire Council,31.03.2024,20.03.2024,Children's Services,Education & Childrens Services - CS Dir,TRAINLINE,19.39,0,19.39,Sec 20/31: Supp for Contact,Passenger railways
Buckinghamshire Council,31.03.2024,20.03.2024,Communities,artnerships - Communities,HOTEL INDIGO STRATFORD,166.73,0,166.73,Miscellaneous (Other)  Expenses,Hotel Indigo
Buckinghamshire Council,31.03.2024,20.03.2024,Children's Services,Education & Childrens Services - CS Dir,PAYPAL,341.95,0,341.95,Leaving Care - Grants for Care Leavers,Variety stores
Buckinghamshire Council,31.03.2024,20.03.2024,Children's Services,Education & Childrens Services - CS Dir,PAYPAL,190,0,190,Leaving Care - Grants for Care Leavers,Variety stores
Buckinghamshire Council,31.03.2024,20.03.2024,CC Obsolete Cost Centres,Obsolete Cost Centres,trainline,-219.8,0,-219.8,Staff Travelling Expenses,Passenger railways
Buckinghamshire Council,31.03.2024,19.03.2024,"Planning, Growth & Sustainability",Partnership Climate Change & Envir - PGS,TRAINLINE,78.49,0,78.49,Staff Travelling Expenses,Passenger railways
Buckinghamshire Council,31.03.2024,19.03.2024,"Planning, Growth & Sustainability",Planning & Regeneration - PGS,HSE - BSR,336,0,336,Reg & Exam Fees for External Courses,Government services
Buckinghamshire Council,31.03.2024,19.03.2024,"Planning, Growth & Sustainability",Housing & Homelessness & Regulatory PGS,BUCKINGHAM HOTEL,349.2,0,349.2,Homelessness,"Hotels, motels & resorts"
Buckinghamshire Council,31.03.2024,19.03.2024,"Planning, Growth & Sustainability",Housing & Homelessness & Regulatory PGS,PREMIER INN,709,0,709,Homelessness,Premier Inn
Buckinghamshire Council,31.03.2024,19.03.2024,Children's Services,Education & Childrens Services - CS Dir,TRAINLINE,133.99,0,133.99,Staff Travelling Expenses,Passenger railways
Buckinghamshire Council,31.03.2024,19.03.2024,Children's Services,Education & Childrens Services - CS Dir,TRAINLINE,55.59,0,55.59,Staff Travelling Expenses,Passenger railways
Buckinghamshire Council,31.03.2024,19.03.2024,Adults and Health,Health & Wellbeing - Adults & Health Dir,TESCO STORES 2041,166.75,0,166.75,"Courses, Conference and Seminar Fees",Grocery stores
Buckinghamshire Council,31.03.2024,19.03.2024,Adults and Health,Health & Wellbeing - Adults & Health Dir,LYRECO UK LTD,60.2,12.04,72.24,Stationery & Office Supplies,Stationery & office supplies
Buckinghamshire Council,31.03.2024,19.03.2024,Children's Services,Education & Childrens Services - CS Dir,MEZZINO LTD,"2,924.00",0,"2,924.00",Leaving Care - Higher Education Supp,Estate Agents & Property Management
Buckinghamshire Council,31.03.2024,19.03.2024,Children's Services,Education & Childrens Services - CS Dir,WWW.ARGOS.CO.UK,195.94,0,195.94,Leaving Care - Grants for Care Leavers,Department stores
Buckinghamshire Council,31.03.2024,19.03.2024,Deputy Chief Executive,Communities - DCE,WWW.ARGOS.CO.UK,340.79,68.16,408.95,Other Personal Needs,Department stores
Buckinghamshire Council,31.03.2024,19.03.2024,Deputy Chief Executive,Communities - DCE,WWW.ARGOS.CO.UK,230.79,46.16,276.95,Other Personal Needs,Department stores
Buckinghamshire Council,31.03.2024,19.03.2024,Deputy Chief Executive,Communities - DCE,AO RETAIL LIMITED,249.16,49.84,299,Other Personal Needs,Household appliance stores
Buckinghamshire Council,31.03.2024,19.03.2024,Deputy Chief Executive,Communities - DCE,AO RETAIL LIMITED,780,156,936,Other Personal Needs,Household appliance stores
Buckinghamshire Council,31.03.2024,19.03.2024,Deputy Chief Executive,Communities - DCE,AO RETAIL LIMITED,0.94,0,0.94,Other Personal Needs,Household appliance stores
Buckinghamshire Council,31.03.2024,19.03.2024,Deputy Chief Executive,Communities - DCE,AO RETAIL LIMITED,498.33,99.67,598,Other Personal Needs,Household appliance stores
Buckinghamshire Council,31.03.2024,19.03.2024,Deputy Chief Executive,Communities - DCE,AO RETAIL LIMITED,282.5,56.5,339,Other Personal Needs,Household appliance stores
Buckinghamshire Council,31.03.2024,19.03.2024,Deputy Chief Executive,Communities - DCE,AO RETAIL LIMITED,780,156,936,Other Personal Needs,Household appliance stores
Buckinghamshire Council,31.03.2024,19.03.2024,Deputy Chief Executive,Communities - DCE,AO RETAIL LIMITED,0.94,0,0.94,Other Personal Needs,Household appliance stores
Buckinghamshire Council,31.03.2024,19.03.2024,Deputy Chief Executive,Communities - DCE,AO RETAIL LIMITED,801.66,160.34,962,Other Personal Needs,Household appliance stores
Buckinghamshire Council,31.03.2024,19.03.2024,Deputy Chief Executive,Communities - DCE,AO RETAIL LIMITED,203.33,40.67,244,Other Personal Needs,Household appliance stores
Buckinghamshire Council,31.03.2024,19.03.2024,Deputy Chief Executive,Communities - DCE,AO RETAIL LIMITED,780,156,936,Other Personal Needs,Household appliance stores
Buckinghamshire Council,31.03.2024,19.03.2024,Deputy Chief Executive,Communities - DCE,AO RETAIL LIMITED,1.12,0,1.12,Other Personal Needs,Household appliance stores
Buckinghamshire Council,31.03.2024,19.03.2024,Deputy Chief Executive,Communities - DCE,WWW.ARGOS.CO.UK,186.62,37.33,223.95,Other Personal Needs,Department stores
Buckinghamshire Council,31.03.2024,19.03.2024,Deputy Chief Executive,Communities - DCE,WWW.ARGOS.CO.UK,940.78,188.17,"1,128.95",Other Personal Needs,Department stores
Buckinghamshire Council,31.03.2024,19.03.2024,Children's Services,Education & Childrens Services - CS Dir,TRAINLINE,47.09,0,47.09,Sec 20/31: Supp for Contact,Passenger railways
Buckinghamshire Council,31.03.2024,19.03.2024,Children's Services,Education & Childrens Services - CS Dir,A1 TAXI SERVICE,165,33,198,Sec 20/31: Financial Assistance One Off,Taxicabs & limousines
Buckinghamshire Council,31.03.2024,19.03.2024,Children's Services,Education & Childrens Services - CS Dir,A1 TAXI SERVICE,140,28,168,Sec 20/31: Financial Assistance One Off,Taxicabs & limousines
Buckinghamshire Council,31.03.2024,19.03.2024,Deputy Chief Executive,Communities - DCE,AO RETAIL LIMITED,211.66,42.34,254,Other Personal Needs,Household appliance stores
Buckinghamshire Council,31.03.2024,19.03.2024,Children's Services,Education & Childrens Services - CS Dir,BUCKINGHAM HOTEL,"1,890.00",0,"1,890.00",Sec 17: Accommodation,"Hotels, motels & resorts"
Buckinghamshire Council,31.03.2024,19.03.2024,Children's Services,Education & Childrens Services - CS Dir,BUCKINGHAM HOTEL,"1,890.00",0,"1,890.00",Sec 17: Accommodation,"Hotels, motels & resorts"
Buckinghamshire Council,31.03.2024,19.03.2024,Communities,Transport - Communities Dir,PARKING CO OFF,1.1,0,1.1,Repair and Maintenance of Equipment,Car parking & garages
Buckinghamshire Council,31.03.2024,19.03.2024,Communities,artnerships - Communities,PIZZA HUT 326,15.99,0,15.99,Miscellaneous (Other)  Expenses,Restaurants
Buckinghamshire Council,31.03.2024,19.03.2024,Communities,artnerships - Communities,WB DAYS INN TELFORD,120.99,0,120.99,Miscellaneous (Other)  Expenses,"Hotels, motels & resorts"
Buckinghamshire Council,31.03.2024,19.03.2024,"Planning, Growth & Sustainability",AH&R - PGS Dir,WWW.HUCK-NET.CO.UK,91.39,18.28,109.67,General Repairs & Maintenance,Misc Industrial supplies
Buckinghamshire Council,31.03.2024,19.03.2024,Resources,Communities - Resources,AMAZON* 204-7855452-09,43.43,0,43.43,Emergency Expenses,Misc. general merchandise
Buckinghamshire Council,31.03.2024,19.03.2024,Communities,Transport - Communities Dir,AMAZON* 204-5424269-00,74.93,0,74.93,Miscellaneous (Other)  Expenses,Misc. general merchandise
Buckinghamshire Council,31.03.2024,19.03.2024,Children's Services,Education & Childrens Services - CS Dir,AMAZON* 204-1341524-19,7.99,0,7.99,Miscellaneous (Other)  Expenses,Misc. general merchandise
Buckinghamshire Council,31.03.2024,19.03.2024,Children's Services,Education & Childrens Services - CS Dir,AMAZON* 204-9074670-56,16.94,0,16.94,Furniture,Misc. general merchandise
Buckinghamshire Council,31.03.2024,19.03.2024,Adults and Health,Health & Wellbeing - Adults & Health Dir,BKG*HOTEL AT BOOKING.C,589.5,0,589.5,Other Short Term Support,Travel agencies
Buckinghamshire Council,31.03.2024,19.03.2024,Children's Services,Education & Childrens Services - CS Dir,HOGSHAW FARM,289,0,289,Activities & General Recreation,Tourist attractions and exhibitions
Buckinghamshire Council,31.03.2024,19.03.2024,Children's Services,Education & Childrens Services - CS Dir,EASYJET,105.98,0,105.98,Sec 20/31: Financial Assistance,Easyjet
Buckinghamshire Council,31.03.2024,19.03.2024,Children's Services,Education & Childrens Services - CS Dir,VOUCHER EXPRESS,100,0,100,General Allowances,Miscellaneous retail
Buckinghamshire Council,31.03.2024,19.03.2024,Children's Services,Education & Childrens Services - CS Dir,DREAMS LTD,99,0,99,Leaving Care - Grants for Care Leavers,Furniture & home furnishing
Buckinghamshire Council,31.03.2024,19.03.2024,"Planning, Growth & Sustainability",Housing & Homelessness & Regulatory PGS,TRAVELODGE GB0000,378.95,0,378.95,Bed & Breakfast,Travelodge
Buckinghamshire Council,31.03.2024,19.03.2024,Children's Services,Education & Childrens Services - CS Dir,TRAVELODGE GB0000,335.5,0,335.5,Sec 17: Accommodation,Travelodge
Buckinghamshire Council,31.03.2024,19.03.2024,Children's Services,Education & Childrens Services - CS Dir,AMZNBUSINESS,189.81,0,189.81,Educational Equipment,Miscellaneous retail
Buckinghamshire Council,31.03.2024,19.03.2024,"Planning, Growth & Sustainability",Housing & Homelessness & Regulatory PGS,BT BUSINESS BILL,517.2,0,517.2,Telephones,Phone services
Buckinghamshire Council,31.03.2024,19.03.2024,Children's Services,Education & Childrens Services - CS Dir,LIDL GB  HIGH WYCOMBE,12.99,0,12.99,Miscellaneous (Other)  Expenses,Grocery stores
Buckinghamshire Council,31.03.2024,19.03.2024,Adults and Health,Health & Wellbeing - Adults & Health Dir,WWW.ARGOS.CO.UK,43.95,0,43.95,Other General Office Expenses,Department stores
Buckinghamshire Council,31.03.2024,19.03.2024,Communities,Culture & Leisure - Communities Dir,AMAZON* 205-7712346-63,-18.99,0,-18.99,Events Expenditure,Misc. general merchandise
Buckinghamshire Council,31.03.2024,19.03.2024,Communities,Climate Change & Environment - Community,AMAZON* 026-2792662-75,62.94,0,62.94,Waste Prevention costs,Misc. general merchandise
Buckinghamshire Council,31.03.2024,19.03.2024,Children's Services,Education & Childrens Services - CS Dir,TRAINLINE,79.24,0,79.24,Court Orders Sec 31: Supp. for Contact,Passenger railways
Buckinghamshire Council,31.03.2024,19.03.2024,Children's Services,Education & Childrens Services - CS Dir,AMZNBUSINESS,189.81,0,189.81,Educational Equipment,Miscellaneous retail
Buckinghamshire Council,31.03.2024,19.03.2024,Children's Services,Education & Childrens Services - CS Dir,AMZNBUSINESS,189.81,0,189.81,Educational Equipment,Miscellaneous retail
Buckinghamshire Council,31.03.2024,18.03.2024,"Planning, Growth & Sustainability",Partnership Climate Change & Envir - PGS,TRAINLINE,78.49,0,78.49,Staff Travelling Expenses,Passenger railways
Buckinghamshire Council,31.03.2024,18.03.2024,Children's Services,Education & Childrens Services - CS Dir,TESCO STORES 2038,114.18,0,114.18,General Provisions (Food),Grocery stores
Buckinghamshire Council,31.03.2024,18.03.2024,Deputy Chief Executive,Communities - DCE,AO RETAIL LIMITED,772.49,154.51,927,Other Personal Needs,Household appliance stores
Buckinghamshire Council,31.03.2024,18.03.2024,Deputy Chief Executive,Communities - DCE,WWW.ARGOS.CO.UK,225.79,45.16,270.95,Other Personal Needs,Department stores
Buckinghamshire Council,31.03.2024,18.03.2024,Deputy Chief Executive,Communities - DCE,WWW.ARGOS.CO.UK,161.62,32.33,193.95,Other Personal Needs,Department stores
Buckinghamshire Council,31.03.2024,18.03.2024,Deputy Chief Executive,Communities - DCE,WWW.ARGOS.CO.UK,753.95,0,753.95,Other Personal Needs,Department stores
Buckinghamshire Council,31.03.2024,18.03.2024,Children's Services,Education & Childrens Services - CS Dir,TRAINLINE,24.79,0,24.79,Sec 20/31: Supp for Contact,Passenger railways
Buckinghamshire Council,31.03.2024,18.03.2024,Children's Services,Education & Childrens Services - CS Dir,TRAINLINE,25.79,0,25.79,Sec 20/31: Supp for Contact,Passenger railways
Buckinghamshire Council,31.03.2024,18.03.2024,Children's Services,Education & Childrens Services - CS Dir,TRAINLINE,-23.8,0,-23.8,Sec 20/31: Supp for Contact,Passenger railways
Buckinghamshire Council,31.03.2024,18.03.2024,Communities,Housing & Homelessness & Regulatory Comm,GRANT AND STONE,126.91,0,126.91,General Repairs & Maintenance,Timber & building supplies
Buckinghamshire Council,31.03.2024,18.03.2024,Communities,Transport - Communities Dir,RAC MOTORING SERVICES,645.57,0,645.57,Leasing Costs,"Insurance sales, underwritering, premiums"
Buckinghamshire Council,31.03.2024,18.03.2024,Children's Services,Education & Childrens Services - CS Dir,A1 TAXI SERVICE,168,0,168,Sec 20/31: Transport,Taxicabs & limousines
Buckinghamshire Council,31.03.2024,18.03.2024,Deputy Chief Executive,AH&R- DCE Dir,OXFORD291OFFICE,500,0,500,Legal Fees,Fines
Buckinghamshire Council,31.03.2024,18.03.2024,Deputy Chief Executive,AH&R- DCE Dir,OXFORD291OFFICE,477.98,0,477.98,Legal Fees,Fines
Buckinghamshire Council,31.03.2024,18.03.2024,Deputy Chief Executive,AH&R- DCE Dir,OXFORD291OFFICE,477.98,0,477.98,Legal Fees,Fines
Buckinghamshire Council,31.03.2024,18.03.2024,Deputy Chief Executive,AH&R- DCE Dir,OXFORD291OFFICE,478,0,478,Legal Fees,Fines
Buckinghamshire Council,31.03.2024,18.03.2024,Children's Services,Education & Childrens Services - CS Dir,WM MORRISONS STORE,2.7,0,2.7,Activities & General Recreation,Grocery stores
Buckinghamshire Council,31.03.2024,18.03.2024,Children's Services,Education & Childrens Services - CS Dir,DOMINO S PIZZA,50.79,0,50.79,Activities & General Recreation,Restaurants
Buckinghamshire Council,31.03.2024,18.03.2024,"Planning, Growth & Sustainability",AH&R - PGS Dir,B & Q 1124,30,0,30,General Repairs & Maintenance,Home supply warehouse stores
Buckinghamshire Council,31.03.2024,18.03.2024,Children's Services,Education & Childrens Services - CS Dir,CARDIFF COUNCIL EPAY,11,0,11,Sec 20/31: Specialist Services,Government services
Buckinghamshire Council,31.03.2024,18.03.2024,Children's Services,Education & Childrens Services - CS Dir,ASDA GROCERIES ONLINE,49.3,0,49.3,General Provisions (Food),Grocery stores
Buckinghamshire Council,31.03.2024,18.03.2024,Children's Services,Education & Childrens Services - CS Dir,ASDA GROCERIES ONLINE,4,0,4,General Provisions (Food),Grocery stores
Buckinghamshire Council,31.03.2024,18.03.2024,Children's Services,Education & Childrens Services - CS Dir,TESCO STORES 2041,61.64,0,61.64,General Provisions (Food),Grocery stores
Buckinghamshire Council,31.03.2024,18.03.2024,Children's Services,Education & Childrens Services - CS Dir,AO RETAIL LIMITED,370,0,370,Leaving Care - Grants for Care Leavers,Household appliance stores
Buckinghamshire Council,31.03.2024,18.03.2024,Children's Services,Education & Childrens Services - CS Dir,TESCO STORES 5927,11,0,11,General Provisions (Food),Grocery stores
Buckinghamshire Council,31.03.2024,18.03.2024,"Planning, Growth & Sustainability",Planning & Regeneration - PGS,HIGH WYCOMBE SSTP,19.95,0,19.95,Staff Travelling Expenses,Passenger railways
Buckinghamshire Council,31.03.2024,18.03.2024,Children's Services,Education & Childrens Services - CS Dir,WWW.ARGOS.CO.UK,323,0,323,Equipment (including storage),Department stores
Buckinghamshire Council,31.03.2024,18.03.2024,Children's Services,Education & Childrens Services - CS Dir,CURRYS ONLINE,265.83,53.17,319,Administrative Equipment & Tools,Electronics shops
Buckinghamshire Council,31.03.2024,18.03.2024,Adults and Health,Health & Wellbeing - Adults & Health Dir,MOL*PRIMARY TEACHING SERV,8.2,1.64,9.84,Stationery & Office Supplies,Miscellaneous retail
Buckinghamshire Council,31.03.2024,18.03.2024,Adults and Health,Health & Wellbeing - Adults & Health Dir,ASDA GROCERIES ONLINE,100.1,0,100.1,General Provisions (Food),Grocery stores
Buckinghamshire Council,31.03.2024,18.03.2024,Adults and Health,Health & Wellbeing - Adults & Health Dir,ASDA GROCERIES ONLINE,-4.56,0,-4.56,General Provisions (Food),Grocery stores
Buckinghamshire Council,31.03.2024,18.03.2024,Children's Services,Education & Childrens Services - CS Dir,TVLICENSING.CO.UK,159,0,159,Professional Services (non curriculum) - External,Consultants & public relation services
Buckinghamshire Council,31.03.2024,17.03.2024,Children's Services,Education & Childrens Services - CS Dir,CANVA* 04093-24018208,34.99,0,34.99,Marketing,"Commercial photo, art & graphic"
Buckinghamshire Council,31.03.2024,17.03.2024,Communities,Transport - Communities Dir,AMAZON* 206-3732702-08,49.99,0,49.99,Vehicle Hire,Misc. general merchandise
Buckinghamshire Council,31.03.2024,17.03.2024,"Planning, Growth & Sustainability",AH&R - PGS Dir,AMAZON* 204-3121687-30,40.1,0,40.1,Other Equipment and Materials,Misc. general merchandise
Buckinghamshire Council,31.03.2024,17.03.2024,Resources,AH&R - Res Dir,FACEBK *EKJDDZB4X2,117.35,0,117.35,Permanent Recruitment Costs,Advertising services
Buckinghamshire Council,31.03.2024,17.03.2024,Children's Services,Education & Childrens Services - CS Dir,AMZNMKTPLACE,123.35,0,123.35,Consumable Supplies,Miscellaneous retail
Buckinghamshire Council,31.03.2024,16.03.2024,Communities,Climate Change & Environment - Community,ROADWARRIOR,12.13,0,12.13,Computer Support Services,"Programming, data processing & system design"
Buckinghamshire Council,31.03.2024,16.03.2024,"Planning, Growth & Sustainability",AH&R - PGS Dir,ASDA SUPERSTORE,43,0,43,Cleaning & Domestic Equipment,Grocery stores
Buckinghamshire Council,31.03.2024,16.03.2024,Children's Services,Education & Childrens Services - CS Dir,TESCO STORES 2041,55.72,0,55.72,General Provisions (Food),Grocery stores
Buckinghamshire Council,31.03.2024,16.03.2024,Children's Services,Education & Childrens Services - CS Dir,KP STATIONERS,4.35,0,4.35,"Books, Records, Films & Oth Publications",Newspapers / newsagents
Buckinghamshire Council,31.03.2024,16.03.2024,Deputy Chief Executive,AH&R- DCE Dir,OXFORD BUS COMPANY,2,0,2,Staff Travelling Expenses,"Buses, charter & tour"
Buckinghamshire Council,31.03.2024,16.03.2024,"Planning, Growth & Sustainability",Planning & Regeneration - PGS,UBR* PENDING.UBER.COM,7.96,0,7.96,Staff Travelling Expenses,Taxicabs & limousines
Buckinghamshire Council,31.03.2024,15.03.2024,"Planning, Growth & Sustainability",Planning & Regeneration - PGS,HSE - BSR,336,0,336,Reg & Exam Fees for External Courses,Government services
Buckinghamshire Council,31.03.2024,15.03.2024,"Planning, Growth & Sustainability",Planning & Regeneration - PGS,RICS SUBS UK CYBS,539,0,539,Professional Subscriptions re Employees,Membership organisations
Buckinghamshire Council,31.03.2024,15.03.2024,Communities,Culture & Leisure - Communities Dir,AMAZON* 204-9919674-96,91.4,0,91.4,Stationery & Office Supplies,Misc. general merchandise
Buckinghamshire Council,31.03.2024,15.03.2024,Deputy Chief Executive,AH&R- DCE Dir,DOXZOO,10.88,0,10.88,Members' Allowances - Travel & Subsist,Publishing & printing services
Buckinghamshire Council,31.03.2024,15.03.2024,Children's Services,Education & Childrens Services - CS Dir,WF *UK4228994864,231.57,0,231.57,Leaving Care - Grants for Care Leavers,Furniture & home furnishing
Buckinghamshire Council,31.03.2024,15.03.2024,Deputy Chief Executive,Communities - DCE,AO RETAIL LIMITED,54.15,10.83,64.98,Other Personal Needs,Household appliance stores
Buckinghamshire Council,31.03.2024,15.03.2024,Deputy Chief Executive,Communities - DCE,AO RETAIL LIMITED,0.02,0,0.02,Other Personal Needs,Household appliance stores
Buckinghamshire Council,31.03.2024,15.03.2024,Deputy Chief Executive,Communities - DCE,AO RETAIL LIMITED,722.49,144.51,867,Other Personal Needs,Household appliance stores
Buckinghamshire Council,31.03.2024,15.03.2024,Children's Services,Education & Childrens Services - CS Dir,TRAINLINE,127.44,0,127.44,Sec 20/31: Supp for Contact,Passenger railways
Buckinghamshire Council,31.03.2024,15.03.2024,Deputy Chief Executive,Communities - DCE,AO RETAIL LIMITED,810.83,162.17,973,Other Personal Needs,Household appliance stores
Buckinghamshire Council,31.03.2024,15.03.2024,Deputy Chief Executive,Communities - DCE,AO RETAIL LIMITED,195,39,234,Other Personal Needs,Household appliance stores
Buckinghamshire Council,31.03.2024,15.03.2024,Deputy Chief Executive,Communities - DCE,AO RETAIL LIMITED,249.16,49.84,299,Other Personal Needs,Household appliance stores
Buckinghamshire Council,31.03.2024,15.03.2024,Deputy Chief Executive,Communities - DCE,WWW.ARGOS.CO.UK,34.95,6.99,41.94,Other Personal Needs,Department stores
Buckinghamshire Council,31.03.2024,15.03.2024,Deputy Chief Executive,Communities - DCE,WWW.ARGOS.CO.UK,0.01,0,0.01,Other Personal Needs,Department stores
Buckinghamshire Council,31.03.2024,15.03.2024,Deputy Chief Executive,Communities - DCE,WWW.ARGOS.CO.UK,414.95,83,497.95,Other Personal Needs,Department stores
Buckinghamshire Council,31.03.2024,15.03.2024,Children's Services,Education & Childrens Services - CS Dir,BACK MARKET UK LTD,257.72,0,257.72,Sec 20/31: Financial Assistance,Electronics shops
Buckinghamshire Council,31.03.2024,15.03.2024,Children's Services,Education & Childrens Services - CS Dir,AMAZON.CO.UK,95.48,0,95.48,Sec 20/31: Financial Assistance,Direct sales companies
Buckinghamshire Council,31.03.2024,15.03.2024,"Planning, Growth & Sustainability",AH&R - PGS Dir,ASDA SUPERSTORE,4.15,0.83,4.98,General Repairs & Maintenance,Grocery stores
Buckinghamshire Council,31.03.2024,15.03.2024,"Planning, Growth & Sustainability",AH&R - PGS Dir,ASDA SUPERSTORE,0.02,0,0.02,General Repairs & Maintenance,Grocery stores
Buckinghamshire Council,31.03.2024,15.03.2024,"Planning, Growth & Sustainability",AH&R - PGS Dir,AMAZON* 204-7083838-51,29.99,0,29.99,General Repairs & Maintenance,Misc. general merchandise
Buckinghamshire Council,31.03.2024,15.03.2024,Communities,Housing & Homelessness & Regulatory Comm,INPLAS FABRICATIONS LTD,384,0,384,Contractors' Work,Trade contractors
Buckinghamshire Council,31.03.2024,15.03.2024,Children's Services,Education & Childrens Services - CS Dir,AMAZON.CO.UK,309.97,0,309.97,Equipment (including storage),Direct sales companies
Buckinghamshire Council,31.03.2024,15.03.2024,Children's Services,Education & Childrens Services - CS Dir,WWW.BUCKINGHAMSHIRE.GOV,36.9,0,36.9,Activities & General Recreation,Government services
Buckinghamshire Council,31.03.2024,15.03.2024,"Planning, Growth & Sustainability",AH&R - PGS Dir,LYRECO UK LTD,101.5,20.3,121.8,Stationery & Office Supplies,Stationery & office supplies
Buckinghamshire Council,31.03.2024,15.03.2024,"Planning, Growth & Sustainability",AH&R - PGS Dir,ASDA SUPERSTORE,14.5,0,14.5,General Provisions (Food),Grocery stores
Buckinghamshire Council,31.03.2024,15.03.2024,Children's Services,Education & Childrens Services - CS Dir,THE RANGE,27.1,0,27.1,Educational Equipment,Department stores
Buckinghamshire Council,31.03.2024,15.03.2024,Children's Services,Education & Childrens Services - CS Dir,POUNDLAND LTD - 2492,3,0,3,Educational Equipment,Discount stores
Buckinghamshire Council,31.03.2024,15.03.2024,Children's Services,Education & Childrens Services - CS Dir,HOBBYCRAFT,18.4,3.68,22.08,Educational Equipment,Art & craft shops
Buckinghamshire Council,31.03.2024,15.03.2024,Children's Services,Education & Childrens Services - CS Dir,HOBBYCRAFT,0.02,0,0.02,Educational Equipment,Art & craft shops
Buckinghamshire Council,31.03.2024,15.03.2024,Children's Services,Education & Childrens Services - CS Dir,LINKEDIN ADS 9465317193,32.04,0,32.04,Advertising,Advertising services
Buckinghamshire Council,31.03.2024,15.03.2024,Children's Services,Education & Childrens Services - CS Dir,WF *UK4228850794,-51.98,0,-51.98,Leaving Care - Grants for Care Leavers,Furniture & home furnishing
Buckinghamshire Council,31.03.2024,15.03.2024,Children's Services,Education & Childrens Services - CS Dir,BUCKS NEW ONLINE,"-4,625.00",0,"-4,625.00",Leaving Care - Higher Education Supp,Colleges & universities
Buckinghamshire Council,31.03.2024,15.03.2024,Children's Services,Education & Childrens Services - CS Dir,VAHT.CO.UK,125.81,0,125.81,Leaving Care - Rent,Estate Agents & Property Management
Buckinghamshire Council,31.03.2024,15.03.2024,Adults and Health,Health & Wellbeing - Adults & Health Dir,TESCO STORES 5135,247.2,0,247.2,General Provisions (Food),Grocery stores
Buckinghamshire Council,31.03.2024,15.03.2024,Adults and Health,Health & Wellbeing - Adults & Health Dir,TESCO STORES 5135,-0.99,0,-0.99,General Provisions (Food),Grocery stores
Buckinghamshire Council,31.03.2024,15.03.2024,Children's Services,Education & Childrens Services - CS Dir,TRAINLINE,38.29,0,38.29,Sec 20/31: Supp for Contact,Passenger railways
Buckinghamshire Council,31.03.2024,15.03.2024,Communities,Housing & Homelessness & Regulatory Comm,BOOKER LTD - 38534944,283.58,0,283.58,Vending Machines Supplies,Grocery stores
Buckinghamshire Council,31.03.2024,14.03.2024,Communities,Culture & Leisure - Communities Dir,HIGH SPEED TRAINING,37.2,0,37.2,Course Fees & Post Entry Training,Schools
Buckinghamshire Council,31.03.2024,14.03.2024,Adults and Health,Health & Wellbeing - Adults & Health Dir,ASDA SUPERSTORE,15.06,0,15.06,Activities & General Recreation,Grocery stores
Buckinghamshire Council,31.03.2024,14.03.2024,Communities,Housing & Homelessness & Regulatory PGS,DERBY.GOV.UK,395,0,395,"Courses, Conference and Seminar Fees",Government services
Buckinghamshire Council,31.03.2024,14.03.2024,"Planning, Growth & Sustainability",Housing & Homelessness & Regulatory PGS,LAND REGISTRY ECOM CCC,3,0,3,Homelessness,Government services
Buckinghamshire Council,31.03.2024,14.03.2024,"Planning, Growth & Sustainability",Housing & Homelessness & Regulatory PGS,LAND REGISTRY ECOM CCC,3,0,3,Homelessness,Government services
Buckinghamshire Council,31.03.2024,14.03.2024,"Planning, Growth & Sustainability",Housing & Homelessness & Regulatory PGS,LAND REGISTRY ECOM CCC,3,0,3,Homelessness,Government services
Buckinghamshire Council,31.03.2024,14.03.2024,"Planning, Growth & Sustainability",Climate Change & Environment - PGS,TRAINLINE,68.39,0,68.39,Staff Travelling Expenses,Passenger railways
Buckinghamshire Council,31.03.2024,14.03.2024,Children's Services,Education & Childrens Services - CS Dir,AO RETAIL LIMITED,917,0,917,Leaving Care - Grants for Care Leavers,Household appliance stores
Buckinghamshire Council,31.03.2024,14.03.2024,Children's Services,Education & Childrens Services - CS Dir,IKEA LTD SHOP ONLINE,445,0,445,Leaving Care - Grants for Care Leavers,Furniture & home furnishing
Buckinghamshire Council,31.03.2024,14.03.2024,Children's Services,Education & Childrens Services - CS Dir,M AQUATICS AYLESBURY,56,0,56,General Provisions (Food),"Pet shops, food & supply"
Buckinghamshire Council,31.03.2024,14.03.2024,Children's Services,Education & Childrens Services - CS Dir,SPORTSDIRECT 210,32.99,0,32.99,Other Personal Needs,Sporting goods shops
Buckinghamshire Council,31.03.2024,14.03.2024,Children's Services,Education & Childrens Services - CS Dir,AMAZON PRIME,8.99,0,8.99,Stationery & Office Supplies,Continuous subscriptions
Buckinghamshire Council,31.03.2024,14.03.2024,Children's Services,Education & Childrens Services - CS Dir,CURRYS BUSINESS,557.5,111.5,669,Computer Consumables,Computer software stores
Buckinghamshire Council,31.03.2024,14.03.2024,Deputy Chief Executive,Communities - DCE,MOL*BEDCARE LTD,199.15,39.83,238.98,Other Personal Needs,Furniture & home furnishing
Buckinghamshire Council,31.03.2024,14.03.2024,Deputy Chief Executive,Communities - DCE,MOL*BEDCARE LTD,0.02,0,0.02,Other Personal Needs,Furniture & home furnishing
Buckinghamshire Council,31.03.2024,14.03.2024,Deputy Chief Executive,Communities - DCE,AO RETAIL LIMITED,439.99,88.01,528,Other Personal Needs,Household appliance stores
Buckinghamshire Council,31.03.2024,14.03.2024,Deputy Chief Executive,Communities - DCE,AO RETAIL LIMITED,265.83,53.17,319,Other Personal Needs,Household appliance stores
Buckinghamshire Council,31.03.2024,14.03.2024,Deputy Chief Executive,Communities - DCE,AO RETAIL LIMITED,215.83,43.17,259,Other Personal Needs,Household appliance stores
Buckinghamshire Council,31.03.2024,14.03.2024,Children's Services,Education & Childrens Services - CS Dir,HM PASSPORT OFFICE,82.5,0,82.5,Sec 20/31: Financial Assistance,Government services
Buckinghamshire Council,31.03.2024,14.03.2024,Communities,artnerships - Communities,CAFE OLYMPIA,33.85,0,33.85,Miscellaneous (Other)  Expenses,Fast food restaurants
Buckinghamshire Council,31.03.2024,14.03.2024,Adults and Health,Health & Wellbeing - Adults & Health Dir,TRAINLINE,67.99,0,67.99,Staff Travelling Expenses,Passenger railways
Buckinghamshire Council,31.03.2024,14.03.2024,Children's Services,Education & Childrens Services - CS Dir,SURVEYMONKEYCORE,384,0,384,Computer Support Services,"Programming, data processing & system design"
Buckinghamshire Council,31.03.2024,14.03.2024,Communities,Culture & Leisure - Communities Dir,ORG SUB FEE,99,0,99,Events Expenditure,Computer software stores
Buckinghamshire Council,31.03.2024,14.03.2024,Children's Services,Education & Childrens Services - CS Dir,WWW.TOUCHBASE.ORG.UK,10,0,10,"Courses, Conference and Seminar Fees",Counselling services
Buckinghamshire Council,31.03.2024,14.03.2024,Children's Services,Education & Childrens Services - CS Dir,PPL PRS LTD,305.93,0,305.93,Activities & General Recreation,Membership organisations
Buckinghamshire Council,31.03.2024,14.03.2024,Children's Services,Education & Childrens Services - CS Dir,WF *UK4228850794,51.98,0,51.98,Leaving Care - Grants for Care Leavers,Furniture & home furnishing
Buckinghamshire Council,31.03.2024,14.03.2024,Children's Services,Education & Childrens Services - CS Dir,WF *UK4228851104,51.98,0,51.98,Leaving Care - Grants for Care Leavers,Furniture & home furnishing
Buckinghamshire Council,31.03.2024,14.03.2024,Children's Services,Education & Childrens Services - CS Dir,ASDA GEORGE COM LEEDS,81.75,0,81.75,Leaving Care - Grants for Care Leavers,Grocery stores
Buckinghamshire Council,31.03.2024,14.03.2024,Children's Services,Education & Childrens Services - CS Dir,2MAA043660512 TD E-PMT,82,0,82,Leaving Care ? Financial Assistance One Off,Government services
Buckinghamshire Council,31.03.2024,14.03.2024,"Planning, Growth & Sustainability",Housing & Homelessness & Regulatory PGS,SP FIRE AND SAFETY C,323.94,0,323.94,Miscellaneous (Other)  Expenses,Hardware Equipment & Suppliers
Buckinghamshire Council,31.03.2024,14.03.2024,Children's Services,Education & Childrens Services - CS Dir,AMZNBUSINESS,29.97,0,29.97,Educational Equipment,Miscellaneous retail
Buckinghamshire Council,31.03.2024,14.03.2024,Communities,Leader - PGS,INTUIT LTD MAILCHIMP,54.54,0,54.54,Software Support,Continuous subscriptions
Buckinghamshire Council,31.03.2024,14.03.2024,Communities,Climate Change & Environment - Community,TIMPSON LTD,13.5,0,13.5,Equipment,Miscellaneous retail
Buckinghamshire Council,31.03.2024,14.03.2024,Children's Services,Education & Childrens Services - CS Dir,TRAINLINE,19.39,0,19.39,Sec 20/31: Supp for Contact,Passenger railways
Buckinghamshire Council,31.03.2024,14.03.2024,Communities,Culture & Leisure - Communities Dir,KENT FILM OFFICE,144,0,144,Subscriptions to National Bodies,Schools
Buckinghamshire Council,31.03.2024,14.03.2024,Adults and Health,Health & Wellbeing - Adults & Health Dir,WM MORRISONS STORE,29.14,0,29.14,General Provisions (Food),Grocery stores
Buckinghamshire Council,31.03.2024,14.03.2024,Adults and Health,Health & Wellbeing - Adults & Health Dir,WM MORRISONS STORE,7.6,0,7.6,General Provisions (Food),Grocery stores
Buckinghamshire Council,31.03.2024,14.03.2024,Communities,Housing & Homelessness & Regulatory PGS,ARCO LIMITED,52.6,10.52,63.12,Administrative Equipment & Tools,Misc Industrial supplies
Buckinghamshire Council,31.03.2024,14.03.2024,Children's Services,Education & Childrens Services - CS Dir,WWW.SOTON.AC.UK,80,0,80,"Courses, Conference and Seminar Fees",Colleges & universities
Buckinghamshire Council,31.03.2024,14.03.2024,"Planning, Growth & Sustainability",Housing & Homelessness & Regulatory PGS,AMAZON* 204-8706818-18,91.91,0,91.91,Miscellaneous (Other)  Expenses,Misc. general merchandise
Buckinghamshire Council,31.03.2024,13.03.2024,Resources,AH&R - Res Dir,CLOUDFLARE,206.02,0,206.02,Computer Consumables,Computer software stores
Buckinghamshire Council,31.03.2024,13.03.2024,Resources,AH&R - Res Dir,OPTIMAL WORKSHOP,201.17,0,201.17,Computer Consumables,Computer software stores
Buckinghamshire Council,31.03.2024,13.03.2024,"Planning, Growth & Sustainability",Planning & Regeneration - PGS,HSE - BSR,336,0,336,Reg & Exam Fees for External Courses,Government services
Buckinghamshire Council,31.03.2024,13.03.2024,"Planning, Growth & Sustainability",Planning & Regeneration - PGS,RICS SUBS UK CYBS,539,0,539,Professional Subscriptions re Employees,Membership organisations
Buckinghamshire Council,31.03.2024,13.03.2024,Children's Services,Education & Childrens Services - CS Dir,TRAINLINE,232.29,0,232.29,Sec 20/31: Supp for Contact,Passenger railways
Buckinghamshire Council,31.03.2024,13.03.2024,Children's Services,Education & Childrens Services - CS Dir,TRAINLINE,19.39,0,19.39,Sec 20/31: Supp for Contact,Passenger railways
Buckinghamshire Council,31.03.2024,13.03.2024,"Planning, Growth & Sustainability",Housing & Homelessness & Regulatory PGS,LAND REGISTRY ECOM CCC,3,0,3,Homelessness,Government services
Buckinghamshire Council,31.03.2024,13.03.2024,"Planning, Growth & Sustainability",Housing & Homelessness & Regulatory PGS,LAND REGISTRY ECOM CCC,3,0,3,Homelessness,Government services
Buckinghamshire Council,31.03.2024,13.03.2024,Children's Services,Education & Childrens Services - CS Dir,WWW.ARGOS.CO.UK,572.05,0,572.05,Leaving Care - Grants for Care Leavers,Department stores
Buckinghamshire Council,31.03.2024,13.03.2024,Children's Services,Education & Childrens Services - CS Dir,AMZNMKTPLACE,-379.99,0,-379.99,Leaving Care - Grants for Care Leavers,Miscellaneous retail
Buckinghamshire Council,31.03.2024,13.03.2024,"Planning, Growth & Sustainability",Housing & Homelessness & Regulatory PGS,LAND REGISTRY ECOM CCC,3,0,3,Homelessness,Government services
Buckinghamshire Council,31.03.2024,13.03.2024,"Planning, Growth & Sustainability",Housing & Homelessness & Regulatory PGS,LAND REGISTRY ECOM CCC,3,0,3,Homelessness,Government services
Buckinghamshire Council,31.03.2024,13.03.2024,Communities,Housing & Homelessness & Regulatory Comm,SP MEADOWMANIA UK,84.68,0,84.68,Seeds & Plants,Lawn & garden supply/nursery
Buckinghamshire Council,31.03.2024,13.03.2024,Children's Services,Education & Childrens Services - CS Dir,TIMPSON LTD,50,0,50,General Repairs & Maintenance,Miscellaneous retail
Buckinghamshire Council,31.03.2024,13.03.2024,"Planning, Growth & Sustainability",Housing & Homelessness & Regulatory PGS,AMAZON* 204-4146707-71,23.98,0,23.98,Miscellaneous (Other)  Expenses,Misc. general merchandise
Buckinghamshire Council,31.03.2024,13.03.2024,Children's Services,Education & Childrens Services - CS Dir,POST OFFICE COUNTER,16.2,0,16.2,General Postage,Postal services
Buckinghamshire Council,31.03.2024,13.03.2024,"Planning, Growth & Sustainability",AH&R - PGS Dir,EDMUNDSON ELECTRICAL,71.88,0,71.88,General Repairs & Maintenance,Electrical parts & equipment
Buckinghamshire Council,31.03.2024,13.03.2024,"Planning, Growth & Sustainability",AH&R - PGS Dir,TOOLSTATION LTD,41.72,0,41.72,General Repairs & Maintenance,Timber & building supplies
Buckinghamshire Council,31.03.2024,13.03.2024,Resources,Communities - Resources,NEW YORK DELI GATEHOUSE,90,0,90,Internal Training,Restaurants
Buckinghamshire Council,31.03.2024,13.03.2024,Children's Services,Education & Childrens Services - CS Dir,PREMIER INN,147,0,147,"Rents, Wayleaves & Hire of Premises",Premier Inn
Buckinghamshire Council,31.03.2024,13.03.2024,Children's Services,Education & Childrens Services - CS Dir,UK.VENUM.COM,56.09,0,56.09,Miscellaneous (Other)  Expenses,Sporting goods shops
Buckinghamshire Council,31.03.2024,13.03.2024,Children's Services,Education & Childrens Services - CS Dir,SPORTSDIRECT.COM,12.99,0,12.99,Miscellaneous (Other)  Expenses,Sports & riding apparel shops
Buckinghamshire Council,31.03.2024,13.03.2024,Children's Services,Education & Childrens Services - CS Dir,AMAZON* 204-0272216-79,7.99,0,7.99,Miscellaneous (Other)  Expenses,Misc. general merchandise
Buckinghamshire Council,31.03.2024,13.03.2024,Communities,Climate Change & Environment - Community,BRIANTSOFRISBOROUGH,175.77,0,175.77,General Repairs & Maintenance,Timber & building supplies
Buckinghamshire Council,31.03.2024,13.03.2024,Children's Services,Education & Childrens Services - CS Dir,HOLLYWOOD BOWL,212.4,0,212.4,Activities & General Recreation,Bowling alleys
Buckinghamshire Council,31.03.2024,13.03.2024,Children's Services,Education & Childrens Services - CS Dir,ASDA  STORES 4396,11.35,0,11.35,General Provisions (Food),Grocery stores
Buckinghamshire Council,31.03.2024,13.03.2024,Children's Services,Education & Childrens Services - CS Dir,MCDONALDS 170,43.48,0,43.48,"Exp of School, Club & College Activities",Fast food restaurants
Buckinghamshire Council,31.03.2024,13.03.2024,Children's Services,Education & Childrens Services - CS Dir,DOMINO S PIZZA,32.99,0,32.99,"Exp of School, Club & College Activities",Restaurants
Buckinghamshire Council,31.03.2024,13.03.2024,Children's Services,Education & Childrens Services - CS Dir,TRAINLINE,118.99,0,118.99,Leaving Care ? Financial Assistance One Off,Passenger railways
Buckinghamshire Council,31.03.2024,13.03.2024,"Planning, Growth & Sustainability",Housing & Homelessness & Regulatory PGS,TRAVELODGE GB0000,416.95,0,416.95,Miscellaneous (Other)  Expenses,Travelodge
Buckinghamshire Council,31.03.2024,13.03.2024,Children's Services,Education & Childrens Services - CS Dir,ABSOLUTELY TEN PIN,28,0,28,YOS - Direct Work,Misc. recreational services
Buckinghamshire Council,31.03.2024,13.03.2024,Communities,Climate Change & Environment - Community,AMZNMKTPLACE,18.98,0,18.98,Equipment,Miscellaneous retail
Buckinghamshire Council,31.03.2024,13.03.2024,Resources,AH&R - Res Dir,OXFORD291OFFICE,105,0,105,Court Fees,Fines
Buckinghamshire Council,31.03.2024,13.03.2024,Resources,AH&R - Res Dir,OXFORD291OFFICE,733,0,733,Court Fees,Fines
Buckinghamshire Council,31.03.2024,13.03.2024,Resources,AH&R - Res Dir,OXFORD291OFFICE,61,0,61,Court Fees,Fines
Buckinghamshire Council,31.03.2024,13.03.2024,Resources,AH&R - Res Dir,FASTHOSTS,8.99,0,8.99,IT - Computer Network Charges,Computer network information services
Buckinghamshire Council,31.03.2024,13.03.2024,Resources,AH&R - Res Dir,FASTHOSTS,8.99,0,8.99,IT - Computer Network Charges,Computer network information services
Buckinghamshire Council,31.03.2024,13.03.2024,Resources,AH&R - Res Dir,FASTHOSTS,41.96,0,41.96,IT - Computer Network Charges,Computer network information services
Buckinghamshire Council,31.03.2024,12.03.2024,"Planning, Growth & Sustainability",Planning & Regeneration - PGS,HSE - BSR,336,0,336,Reg & Exam Fees for External Courses,Government services
Buckinghamshire Council,31.03.2024,12.03.2024,"Planning, Growth & Sustainability",Housing & Homelessness & Regulatory PGS,PREMIER INN,526,0,526,Homelessness,Premier Inn
Buckinghamshire Council,31.03.2024,12.03.2024,"Planning, Growth & Sustainability",Housing & Homelessness & Regulatory PGS,PREMIER INN,570,0,570,Homelessness,Premier Inn
Buckinghamshire Council,31.03.2024,12.03.2024,"Planning, Growth & Sustainability",Housing & Homelessness & Regulatory PGS,TRAVELODGE GB0000,95.01,0,95.01,Homelessness,Travelodge
Buckinghamshire Council,31.03.2024,12.03.2024,Children's Services,Education & Childrens Services - CS Dir,SCOTTISHPOWER.COM,360.65,0,360.65,Sec 17: Financial Assistance,Utilities
Buckinghamshire Council,31.03.2024,12.03.2024,Children's Services,Education & Childrens Services - CS Dir,LONDON BOROUGH OF LAMBETH,14,0,14,Sec 20/31: Specialist Services,Government services
Buckinghamshire Council,31.03.2024,12.03.2024,Children's Services,Education & Childrens Services - CS Dir,HM PASSPORT OFFICE,58.5,0,58.5,Sec 20/31: Financial Assistance One Off,Government services
Buckinghamshire Council,31.03.2024,12.03.2024,Children's Services,Education & Childrens Services - CS Dir,HM PASSPORT OFFICE,58.5,0,58.5,Sec 20/31: Financial Assistance One Off,Government services
Buckinghamshire Council,31.03.2024,12.03.2024,Deputy Chief Executive,Communities - DCE,WWW.ARGOS.CO.UK,569.95,113.99,683.94,Other Personal Needs,Department stores
Buckinghamshire Council,31.03.2024,12.03.2024,Deputy Chief Executive,Communities - DCE,WWW.ARGOS.CO.UK,0.01,0,0.01,Other Personal Needs,Department stores
Buckinghamshire Council,31.03.2024,12.03.2024,Deputy Chief Executive,Communities - DCE,AO RETAIL LIMITED,249.16,49.84,299,Other Personal Needs,Household appliance stores
Buckinghamshire Council,31.03.2024,12.03.2024,Deputy Chief Executive,Communities - DCE,AO RETAIL LIMITED,249.16,49.84,299,Other Personal Needs,Household appliance stores
Buckinghamshire Council,31.03.2024,12.03.2024,Deputy Chief Executive,Communities - DCE,AO RETAIL LIMITED,665,133,798,Other Personal Needs,Household appliance stores
Buckinghamshire Council,31.03.2024,12.03.2024,Communities,artnerships - Communities,WWW.DISCOUNTFOOTBALLKI,95.99,0,95.99,Equipment,Sports & riding apparel shops
Buckinghamshire Council,31.03.2024,12.03.2024,Communities,artnerships - Communities,SPORTSDIRECT 210,52.98,0,52.98,Equipment,Sporting goods shops
Buckinghamshire Council,31.03.2024,12.03.2024,Communities,artnerships - Communities,SPORTSDIRECT.COM,47.97,0,47.97,Equipment,Sports & riding apparel shops
Buckinghamshire Council,31.03.2024,12.03.2024,Resources,AH&R - Res Dir,TRAINLINE,43,0,43,Staff Travelling Expenses,Passenger railways
Buckinghamshire Council,31.03.2024,12.03.2024,"Planning, Growth & Sustainability",AH&R - PGS Dir,AMAZON.CO.UK,14.97,0,14.97,Administrative Equipment & Tools,Direct sales companies
Buckinghamshire Council,31.03.2024,12.03.2024,Children's Services,Education & Childrens Services - CS Dir,INTUIT LTD MAILCHIMP,243.56,0,243.56,Service Development,Continuous subscriptions
Buckinghamshire Council,31.03.2024,12.03.2024,Children's Services,Education & Childrens Services - CS Dir,AMAZON* 204-9995628-41,31.95,0,31.95,"Books, Records, Films & Oth Publications",Misc. general merchandise
Buckinghamshire Council,31.03.2024,12.03.2024,Children's Services,Education & Childrens Services - CS Dir,AMAZON.CO.UK,26.48,0,26.48,"Books, Records, Films & Oth Publications",Direct sales companies
Buckinghamshire Council,31.03.2024,12.03.2024,Children's Services,Education & Childrens Services - CS Dir,AMAZON.CO.UK,12.88,0,12.88,"Books, Records, Films & Oth Publications",Direct sales companies
Buckinghamshire Council,31.03.2024,12.03.2024,Children's Services,Education & Childrens Services - CS Dir,BUCKINGHAMSHIRE CNCL,22,0,22,Sec 20/31: Specialist Services,Government services
Buckinghamshire Council,31.03.2024,12.03.2024,Children's Services,Education & Childrens Services - CS Dir,HEALTH AND CARE,449.28,0,449.28,Medical Supplies & Services inc Vet'nary,"Laboratory, medical & hospital equipment"
Buckinghamshire Council,31.03.2024,12.03.2024,Adults and Health,Health & Wellbeing - Adults & Health Dir,BKG*HOTEL AT BOOKING.C,616.5,0,616.5,Other Short Term Support,Travel agencies
Buckinghamshire Council,31.03.2024,12.03.2024,Adults and Health,Health & Wellbeing - Adults & Health Dir,TRAVELODGE GB0000,102.48,0,102.48,Other Short Term Support,Travelodge
Buckinghamshire Council,31.03.2024,12.03.2024,Adults and Health,Health & Wellbeing - Adults & Health Dir,TRAVELODGE GB0000,"1,595.24",0,"1,595.24",Other Short Term Support,Travelodge
Buckinghamshire Council,31.03.2024,12.03.2024,Communities,Climate Change & Environment - Community,HELLOPRINT UNITED KINGDOM,15.59,0,15.59,Photocopiers,Photocopy & reproduction services
Buckinghamshire Council,31.03.2024,12.03.2024,Children's Services,Education & Childrens Services - CS Dir,TESCO STORES 2041,105.91,0,105.91,General Provisions (Food),Grocery stores
Buckinghamshire Council,31.03.2024,12.03.2024,Children's Services,Education & Childrens Services - CS Dir,TESCO STORES 2041,5.08,0,5.08,General Provisions (Food),Grocery stores
Buckinghamshire Council,31.03.2024,12.03.2024,Children's Services,Education & Childrens Services - CS Dir,HM PASSPORT OFFICE,53.5,0,53.5,Sec 20/31: Financial Assistance,Government services
Buckinghamshire Council,31.03.2024,12.03.2024,Children's Services,Education & Childrens Services - CS Dir,BUCKINGHAMSHIRE CNCL,11,0,11,Sec 20/31: Financial Assistance,Government services
Buckinghamshire Council,31.03.2024,12.03.2024,Resources,AH&R - Res Dir,SAINSBURYS S/MKTS,5.65,0,5.65,Other Employees Expenses,Grocery stores
Buckinghamshire Council,31.03.2024,12.03.2024,Children's Services,Education & Childrens Services - CS Dir,AMZNBUSINESS,98.2,19.65,117.85,Educational Equipment,Miscellaneous retail
Buckinghamshire Council,31.03.2024,12.03.2024,Communities,Climate Change & Environment - Community,POST OFFICE COUNTER,7.35,0,7.35,General Postage,Postal services
Buckinghamshire Council,31.03.2024,12.03.2024,Communities,Climate Change & Environment - Community,AMAZON* 204-8285402-29,15.98,0,15.98,Equipment,Misc. general merchandise
Buckinghamshire Council,31.03.2024,12.03.2024,Adults and Health,Health & Wellbeing - Adults & Health Dir,TESCO STORES 5810,3.9,0,3.9,General Provisions (Food),Grocery stores
Buckinghamshire Council,31.03.2024,12.03.2024,Communities,ommunities - Trading Accounts,DVLA VEHICLE TAX,180,0,180,Vehicle Taxation Costs,Tax payments
Buckinghamshire Council,31.03.2024,12.03.2024,Children's Services,Education & Childrens Services - CS Dir,TRAVELODGE GB0000,716.47,0,716.47,Sec 17: Financial Assistance,Travelodge
Buckinghamshire Council,31.03.2024,12.03.2024,Adults and Health,Health & Wellbeing - Adults & Health Dir,AMZNMKTPLACE,18.88,0,18.88,Other Supplies,Miscellaneous retail
Buckinghamshire Council,31.03.2024,11.03.2024,Deputy Chief Executive,Leader - DCE,PRIDE IN LONDON,450,0,450,Special Events,"Civic, social & fraternal associations"
Buckinghamshire Council,31.03.2024,11.03.2024,Children's Services,Education & Childrens Services - CS Dir,FLYWIRE*BIMM,"4,763.75",0,"4,763.75",Leaving Care - Higher Education Supp,Schools
Buckinghamshire Council,31.03.2024,11.03.2024,Children's Services,Education & Childrens Services - CS Dir,TESCO STORES 2038,171.78,0,171.78,General Provisions (Food),Grocery stores
Buckinghamshire Council,31.03.2024,11.03.2024,Deputy Chief Executive,Communities - DCE,AO RETAIL LIMITED,311.66,62.34,374,Other Personal Needs,Household appliance stores
Buckinghamshire Council,31.03.2024,11.03.2024,Deputy Chief Executive,Communities - DCE,AO RETAIL LIMITED,705,141,846,Other Personal Needs,Household appliance stores
Buckinghamshire Council,31.03.2024,11.03.2024,Deputy Chief Executive,Communities - DCE,AO RETAIL LIMITED,1,0,1,Other Personal Needs,Household appliance stores
Buckinghamshire Council,31.03.2024,11.03.2024,Deputy Chief Executive,Communities - DCE,AO RETAIL LIMITED,232.5,46.5,279,Other Personal Needs,Household appliance stores
Buckinghamshire Council,31.03.2024,11.03.2024,Deputy Chief Executive,Communities - DCE,AO RETAIL LIMITED,506.66,101.34,608,Other Personal Needs,Household appliance stores
Buckinghamshire Council,31.03.2024,11.03.2024,Deputy Chief Executive,Communities - DCE,WWW.ARGOS.CO.UK,222.45,44.49,266.94,Other Personal Needs,Department stores
Buckinghamshire Council,31.03.2024,11.03.2024,Deputy Chief Executive,Communities - DCE,WWW.ARGOS.CO.UK,0.01,0,0.01,Other Personal Needs,Department stores
Buckinghamshire Council,31.03.2024,11.03.2024,Deputy Chief Executive,Communities - DCE,WWW.ARGOS.CO.UK,222.45,44.49,266.94,Other Personal Needs,Department stores
Buckinghamshire Council,31.03.2024,11.03.2024,Deputy Chief Executive,Communities - DCE,WWW.ARGOS.CO.UK,0.01,0,0.01,Other Personal Needs,Department stores
Buckinghamshire Council,31.03.2024,11.03.2024,Deputy Chief Executive,Communities - DCE,AO RETAIL LIMITED,-100,0,-100,Other Personal Needs,Household appliance stores
Buckinghamshire Council,31.03.2024,11.03.2024,Resources,AH&R - Res Dir,FASTHOSTS,7.2,0,7.2,IT - Computer Network Charges,Computer network information services
Buckinghamshire Council,31.03.2024,11.03.2024,Children's Services,Education & Childrens Services - CS Dir,ALLIED VEHICLES LTD,"1,155.00",0,"1,155.00",Sec 20/31: Transport,Car rental
Buckinghamshire Council,31.03.2024,11.03.2024,Children's Services,Education & Childrens Services - CS Dir,SKYLINE TAXIS,20,0,20,Sec 20/31: Transport,Taxicabs & limousines
Buckinghamshire Council,31.03.2024,11.03.2024,Children's Services,Education & Childrens Services - CS Dir,SKYLINE TAXIS,20,0,20,Sec 20/31: Transport,Taxicabs & limousines
Buckinghamshire Council,31.03.2024,11.03.2024,Children's Services,Education & Childrens Services - CS Dir,SKYLINE TAXIS,20,0,20,Staff Travelling Expenses,Taxicabs & limousines
Buckinghamshire Council,31.03.2024,11.03.2024,Children's Services,Education & Childrens Services - CS Dir,SKYLINE TAXIS,20,0,20,Sec 20/31: Transport,Taxicabs & limousines
Buckinghamshire Council,31.03.2024,11.03.2024,Children's Services,Education & Childrens Services - CS Dir,SKYLINE TAXIS,20,0,20,Sec 20/31: Transport,Taxicabs & limousines
Buckinghamshire Council,31.03.2024,11.03.2024,Children's Services,Education & Childrens Services - CS Dir,SKYLINE TAXIS,20,0,20,Sec 20/31: Transport,Taxicabs & limousines
Buckinghamshire Council,31.03.2024,11.03.2024,Children's Services,Education & Childrens Services - CS Dir,CURRYS BUSINESS,429.65,85.93,515.58,Computer Consumables,Computer software stores
Buckinghamshire Council,31.03.2024,11.03.2024,Children's Services,Education & Childrens Services - CS Dir,CURRYS BUSINESS,38.95,7.79,46.74,Computer Consumables,Computer software stores
Buckinghamshire Council,31.03.2024,11.03.2024,Children's Services,Education & Childrens Services - CS Dir,CURRYS BUSINESS,0.04,0,0.04,Computer Consumables,Computer software stores
Buckinghamshire Council,31.03.2024,11.03.2024,Children's Services,Education & Childrens Services - CS Dir,CURRYS BUSINESS,732.8,146.56,879.36,Computer Consumables,Computer software stores
Buckinghamshire Council,31.03.2024,11.03.2024,Deputy Chief Executive,AH&R- DCE Dir,WWW.REGISTRY-TRUST.ORG,5,0,5,Miscellaneous (Other)  Expenses,Professional services
Buckinghamshire Council,31.03.2024,11.03.2024,Communities,artnerships - Communities,WWW.BUCKINGHAMSHIRE.GOV,115.43,0,115.43,Miscellaneous (Other)  Expenses,Government services
Buckinghamshire Council,31.03.2024,11.03.2024,"Planning, Growth & Sustainability",AH&R - PGS Dir,WWW.SCREWFIX.COM,89.99,0,89.99,General Repairs & Maintenance,Timber & building supplies
Buckinghamshire Council,31.03.2024,11.03.2024,"Planning, Growth & Sustainability",Special Expenses,PPL PRS LTD,331.5,0,331.5,Events Expenditure,Membership organisations
Buckinghamshire Council,31.03.2024,11.03.2024,Communities,Climate Change & Environment - Community,PRINT WORLD,81.6,0,81.6,Stationery & Office Supplies,Stationery & office supplies stores
Buckinghamshire Council,31.03.2024,11.03.2024,Children's Services,Education & Childrens Services - CS Dir,AMAZON.CO.UK,28.97,0,28.97,Miscellaneous (Other)  Expenses,Direct sales companies
Buckinghamshire Council,31.03.2024,11.03.2024,"Planning, Growth & Sustainability",AH&R - PGS Dir,ASDA SUPERSTORE,14.5,0,14.5,General Provisions (Food),Grocery stores
Buckinghamshire Council,31.03.2024,11.03.2024,Children's Services,Education & Childrens Services - CS Dir,CO-OP GROUP FOOD,12.55,0,12.55,Miscellaneous (Other)  Expenses,Grocery stores
Buckinghamshire Council,31.03.2024,11.03.2024,Children's Services,Education & Childrens Services - CS Dir,WAITROSE,19.75,0,19.75,Project Funding,Grocery stores
Buckinghamshire Council,31.03.2024,11.03.2024,Children's Services,Education & Childrens Services - CS Dir,TESCO STORES 2041,12,0,12,General Provisions (Food),Grocery stores
Buckinghamshire Council,31.03.2024,11.03.2024,Children's Services,Education & Childrens Services - CS Dir,WWW.ARGOS.CO.UK,43.45,0,43.45,Leaving Care - Grants for Care Leavers,Department stores
Buckinghamshire Council,31.03.2024,11.03.2024,Children's Services,Education & Childrens Services - CS Dir,2NAA043587750 TD E-PMT,"1,580.00",0,"1,580.00",Leaving Care ? Financial Assistance One Off,Government services
Buckinghamshire Council,31.03.2024,11.03.2024,Children's Services,Education & Childrens Services - CS Dir,AMAZON* 204-9208012-41,-86.99,0,-86.99,Leaving Care - Grants for Care Leavers,Misc. general merchandise
Buckinghamshire Council,31.03.2024,11.03.2024,"Planning, Growth & Sustainability",Planning & Regeneration - PGS,SUMUP  *SHAH,6.36,0,6.36,Staff Travelling Expenses,Taxicabs & limousines
Buckinghamshire Council,31.03.2024,11.03.2024,"Planning, Growth & Sustainability",Planning & Regeneration - PGS,HIGH WYCOMBE SSTP,19.95,0,19.95,Staff Travelling Expenses,Passenger railways
Buckinghamshire Council,31.03.2024,11.03.2024,Children's Services,Education & Childrens Services - CS Dir,HIGH SPEED TRAINING,31,6.2,37.2,Training (Inc. Health & Safety Courses),Schools
Buckinghamshire Council,31.03.2024,11.03.2024,"Planning, Growth & Sustainability",AH&R - PGS Dir,COMPANIESHOUSE WEB FILING,13,0,13,Subscriptions to National Bodies,Government services
Buckinghamshire Council,31.03.2024,11.03.2024,Adults and Health,Health & Wellbeing - Adults & Health Dir,ASDA GROCERIES ONLINE,102.89,0,102.89,General Provisions (Food),Grocery stores
Buckinghamshire Council,31.03.2024,11.03.2024,Adults and Health,Health & Wellbeing - Adults & Health Dir,ASDA GROCERIES ONLINE,-2.93,0,-2.93,General Provisions (Food),Grocery stores
Buckinghamshire Council,31.03.2024,11.03.2024,Children's Services,Education & Childrens Services - CS Dir,TRAINLINE,19.29,0,19.29,Sec 20/31: Supp for Contact,Passenger railways
Buckinghamshire Council,31.03.2024,11.03.2024,Children's Services,Education & Childrens Services - CS Dir,TRAINLINE,24.79,0,24.79,Sec 20/31: Supp for Contact,Passenger railways
Buckinghamshire Council,31.03.2024,11.03.2024,Communities,ommunities - Trading Accounts,DVLA VEHICLE TAX,180,0,180,Vehicle Taxation Costs,Tax payments
Buckinghamshire Council,31.03.2024,11.03.2024,Communities,ommunities - Trading Accounts,DVLA VEHICLE TAX,180,0,180,Vehicle Taxation Costs,Tax payments
Buckinghamshire Council,31.03.2024,11.03.2024,Communities,ommunities - Trading Accounts,DVLA VEHICLE TAX,180,0,180,Vehicle Taxation Costs,Tax payments
Buckinghamshire Council,31.03.2024,11.03.2024,Communities,ommunities - Trading Accounts,DVLA VEHICLE TAX,180,0,180,Vehicle Taxation Costs,Tax payments
Buckinghamshire Council,31.03.2024,11.03.2024,Communities,ommunities - Trading Accounts,DVLA VEHICLE TAX,180,0,180,Vehicle Taxation Costs,Tax payments
Buckinghamshire Council,31.03.2024,11.03.2024,Communities,ommunities - Trading Accounts,DVLA VEHICLE TAX,165,0,165,Vehicle Taxation Costs,Tax payments
Buckinghamshire Council,31.03.2024,11.03.2024,Communities,ommunities - Trading Accounts,DVLA VEHICLE TAX,165,0,165,Vehicle Taxation Costs,Tax payments
Buckinghamshire Council,31.03.2024,11.03.2024,Communities,ommunities - Trading Accounts,DVLA VEHICLE TAX,180,0,180,Vehicle Taxation Costs,Tax payments
Buckinghamshire Council,31.03.2024,11.03.2024,Adults and Health,Health & Wellbeing - Adults & Health Dir,TRAVELODGE GB0000,443.24,0,443.24,Other Short Term Support,Travelodge
Buckinghamshire Council,31.03.2024,11.03.2024,Adults and Health,Health & Wellbeing - Adults & Health Dir,TRAVELODGE GB0000,886.42,0,886.42,Other Short Term Support,Travelodge
Buckinghamshire Council,31.03.2024,11.03.2024,Communities,artnerships - Communities,TRAINLINE,31.09,0,31.09,Staff Travelling Expenses,Passenger railways
Buckinghamshire Council,31.03.2024,11.03.2024,Children's Services,Education & Childrens Services - CS Dir,AMAZON* 203-3147873-81,20.82,4.17,24.99,Administrative Equipment & Tools,Misc. general merchandise
Buckinghamshire Council,31.03.2024,11.03.2024,Children's Services,Education & Childrens Services - CS Dir,AMAZON* 203-1112485-99,6.16,1.24,7.4,Educational Equipment,Misc. general merchandise
Buckinghamshire Council,31.03.2024,10.03.2024,Communities,Culture & Leisure - Communities Dir,FACEBK C9DZEXXJB2,5,0,5,Advertising,Advertising services
Buckinghamshire Council,31.03.2024,10.03.2024,Children's Services,Education & Childrens Services - CS Dir,AMAZON PRIME,8.99,0,8.99,Miscellaneous (Other)  Expenses,Continuous subscriptions
Buckinghamshire Council,31.03.2024,10.03.2024,Children's Services,Education & Childrens Services - CS Dir,ASDA GROCERIES ONLINE,41.55,0,41.55,General Provisions (Food),Grocery stores
Buckinghamshire Council,31.03.2024,10.03.2024,Deputy Chief Executive,Leader - DCE,FACEBK THX29ZBYS2,840,0,840,Advertising,Advertising services
Buckinghamshire Council,31.03.2024,10.03.2024,"Planning, Growth & Sustainability",Housing & Homelessness & Regulatory PGS,HPI INSTANT INK UK,5.49,0,5.49,Stationery & Office Supplies,Electronics shops
Buckinghamshire Council,31.03.2024,09.03.2024,"Planning, Growth & Sustainability",Climate Change & Environment - PGS,FACEBK F92TTXBHB2,79.56,0,79.56,Advertising,Advertising services
Buckinghamshire Council,31.03.2024,09.03.2024,Children's Services,Education & Childrens Services - CS Dir,BALISTA CLOTHING,45,0,45,Other Personal Needs,Men & womens clothing shops
Buckinghamshire Council,31.03.2024,09.03.2024,Children's Services,Education & Childrens Services - CS Dir,INTUIT LTD MAILCHIMP,47.41,0,47.41,Stationery & Office Supplies,Continuous subscriptions
Buckinghamshire Council,31.03.2024,09.03.2024,Communities,artnerships - Communities,INTUIT LTD MAILCHIMP,24.98,0,24.98,Miscellaneous (Other)  Expenses,Continuous subscriptions
Buckinghamshire Council,31.03.2024,09.03.2024,Children's Services,Education & Childrens Services - CS Dir,TESCO STORES 2041,50.1,0,50.1,"Exp of School, Club & College Activities",Grocery stores
Buckinghamshire Council,31.03.2024,09.03.2024,Children's Services,Education & Childrens Services - CS Dir,CO-OP GROUP FOOD,2.65,0,2.65,"Exp of School, Club & College Activities",Grocery stores
Buckinghamshire Council,31.03.2024,08.03.2024,Children's Services,Education & Childrens Services - CS Dir,BUCKINGHAMSHIRE CNCL,22,0,22,Sec 20/31: Transport,Government services
Buckinghamshire Council,31.03.2024,08.03.2024,Children's Services,Education & Childrens Services - CS Dir,TRAINLINE,71.99,0,71.99,Sec 20/31: Supp for Contact,Passenger railways
Buckinghamshire Council,31.03.2024,08.03.2024,Children's Services,Education & Childrens Services - CS Dir,TRAINLINE,90.39,0,90.39,Staff Travelling Expenses,Passenger railways
Buckinghamshire Council,31.03.2024,08.03.2024,Children's Services,Education & Childrens Services - CS Dir,AMAZON* 204-8028442-86,40.96,0,40.96,Miscellaneous (Other)  Expenses,Misc. general merchandise
Buckinghamshire Council,31.03.2024,08.03.2024,Children's Services,Education & Childrens Services - CS Dir,AMAZON* 204-2534026-92,73.93,0,73.93,Printing & Stationery,Misc. general merchandise
Buckinghamshire Council,31.03.2024,08.03.2024,Deputy Chief Executive,Communities - DCE,AO RETAIL LIMITED,211.65,42.33,253.98,Other Personal Needs,Household appliance stores
Buckinghamshire Council,31.03.2024,08.03.2024,Deputy Chief Executive,Communities - DCE,AO RETAIL LIMITED,0.02,0,0.02,Other Personal Needs,Household appliance stores
Buckinghamshire Council,31.03.2024,08.03.2024,Deputy Chief Executive,Communities - DCE,AO RETAIL LIMITED,473.33,94.67,568,Other Personal Needs,Household appliance stores
Buckinghamshire Council,31.03.2024,08.03.2024,Children's Services,Education & Childrens Services - CS Dir,KINGSTON UNIVERSITY,"3,072.00",0,"3,072.00",Leaving Care - Higher Education Supp,Colleges & universities
Buckinghamshire Council,31.03.2024,08.03.2024,Deputy Chief Executive,Communities - DCE,AO RETAIL LIMITED,772.5,154.5,927,Other Personal Needs,Household appliance stores
Buckinghamshire Council,31.03.2024,08.03.2024,Deputy Chief Executive,Communities - DCE,AO RETAIL LIMITED,1,0,1,Other Personal Needs,Household appliance stores
Buckinghamshire Council,31.03.2024,08.03.2024,Deputy Chief Executive,Communities - DCE,AO RETAIL LIMITED,216.66,43.34,260,Other Personal Needs,Household appliance stores
Buckinghamshire Council,31.03.2024,08.03.2024,Deputy Chief Executive,Communities - DCE,AO RETAIL LIMITED,772.5,154.5,927,Other Personal Needs,Household appliance stores
Buckinghamshire Council,31.03.2024,08.03.2024,Deputy Chief Executive,Communities - DCE,AO RETAIL LIMITED,1,0,1,Other Personal Needs,Household appliance stores
Buckinghamshire Council,31.03.2024,08.03.2024,Deputy Chief Executive,Communities - DCE,PAYPAL,157.5,31.5,189,Other Personal Needs,Variety stores
Buckinghamshire Council,31.03.2024,08.03.2024,Deputy Chief Executive,Communities - DCE,PAYPAL,165.95,0,165.95,Other Personal Needs,Variety stores
Buckinghamshire Council,31.03.2024,08.03.2024,Deputy Chief Executive,Communities - DCE,PAYPAL,176.95,0,176.95,Other Personal Needs,Variety stores
Buckinghamshire Council,31.03.2024,08.03.2024,Deputy Chief Executive,Communities - DCE,PAYPAL,459,0,459,Other Personal Needs,Variety stores
Buckinghamshire Council,31.03.2024,08.03.2024,"Planning, Growth & Sustainability",Planning & Regeneration - PGS,RTPI,76.5,0,76.5,Professional Subscriptions re Employees,"Member clubs, sport, recreation & golf"
Buckinghamshire Council,31.03.2024,08.03.2024,Children's Services,Education & Childrens Services - CS Dir,BOUNDS TAXIS,18,0,18,Sec 20/31: Transport,Taxicabs & limousines
Buckinghamshire Council,31.03.2024,08.03.2024,Children's Services,Education & Childrens Services - CS Dir,BOUNDS TAXIS,19,0,19,Sec 20/31: Transport,Taxicabs & limousines
Buckinghamshire Council,31.03.2024,08.03.2024,Children's Services,Education & Childrens Services - CS Dir,BOUNDS TAXIS,18,0,18,Sec 20/31: Transport,Taxicabs & limousines
Buckinghamshire Council,31.03.2024,08.03.2024,Children's Services,Education & Childrens Services - CS Dir,BOUNDS TAXIS,19,0,19,Sec 20/31: Transport,Taxicabs & limousines
Buckinghamshire Council,31.03.2024,08.03.2024,Children's Services,Education & Childrens Services - CS Dir,CURRYS BUSINESS,557.5,111.5,669,Computer Consumables,Computer software stores
Buckinghamshire Council,31.03.2024,08.03.2024,Children's Services,Education & Childrens Services - CS Dir,CURRYS BUSINESS,265.8,53.16,318.96,Computer Consumables,Computer software stores
Buckinghamshire Council,31.03.2024,08.03.2024,Children's Services,Education & Childrens Services - CS Dir,CURRYS BUSINESS,0.03,0,0.03,Computer Consumables,Computer software stores
Buckinghamshire Council,31.03.2024,08.03.2024,Deputy Chief Executive,Leader - DCE,EBUYER (UK) LTD,39.97,0,39.97,IT Equipment Purchase,Household appliance stores
Buckinghamshire Council,31.03.2024,08.03.2024,"Planning, Growth & Sustainability",AH&R - PGS Dir,LONDIS,10.8,0,10.8,General Provisions (Food),Sweets & confectionary
Buckinghamshire Council,31.03.2024,08.03.2024,Children's Services,Education & Childrens Services - CS Dir,TRAINLINE,48.99,0,48.99,Sec 20/31: Financial Assistance,Passenger railways
Buckinghamshire Council,31.03.2024,08.03.2024,Children's Services,Education & Childrens Services - CS Dir,BT BUSINESS BILL,99.42,0,99.42,Telephones,Phone services
Buckinghamshire Council,31.03.2024,08.03.2024,Children's Services,Education & Childrens Services - CS Dir,WWW.PAY.UKCRS.COM,77.93,0,77.93,Sec 20/31: Financial Assistance,Misc business services
Buckinghamshire Council,31.03.2024,08.03.2024,"Planning, Growth & Sustainability",AH&R - PGS Dir,EDMUNDSON ELECTRICAL,10.69,0,10.69,General Repairs & Maintenance,Electrical parts & equipment
Buckinghamshire Council,31.03.2024,08.03.2024,Children's Services,Education & Childrens Services - CS Dir,AMAZON* 204-4759277-29,47.98,0,47.98,Miscellaneous (Other)  Expenses,Misc. general merchandise
Buckinghamshire Council,31.03.2024,08.03.2024,Communities,Climate Change & Environment - Community,CURRYS BUSINESS,776.98,0,776.98,Repair & Maint of Vehicles & Plant,Computer software stores
Buckinghamshire Council,31.03.2024,08.03.2024,Communities,Climate Change & Environment - Community,CURRYS BUSINESS,517.99,0,517.99,Repair & Maint of Vehicles & Plant,Computer software stores
Buckinghamshire Council,31.03.2024,08.03.2024,Communities,Climate Change & Environment - Community,FACEBK YY3TUZ3CM2,190.58,0,190.58,Advertising,Advertising services
Buckinghamshire Council,31.03.2024,08.03.2024,Communities,Climate Change & Environment - Community,FACEBK XM4JK2UBM2,2.77,0,2.77,Advertising,Advertising services
Buckinghamshire Council,31.03.2024,08.03.2024,Children's Services,Education & Childrens Services - CS Dir,HOTEL IBIS,185,0,185,Sec 17: Accommodation,Hotel Ibis
Buckinghamshire Council,31.03.2024,08.03.2024,Children's Services,Education & Childrens Services - CS Dir,AMAZON* 204-1164935-10,25.79,0,25.79,Equipment (including storage),Misc. general merchandise
Buckinghamshire Council,31.03.2024,08.03.2024,Communities,Culture & Leisure - Communities Dir,WWW.BUCKINGHAMSHIRE.GOV,29.2,0,29.2,Administrative Equipment & Tools,Government services
Buckinghamshire Council,31.03.2024,08.03.2024,"Planning, Growth & Sustainability",Housing & Homelessness & Regulatory PGS,AMAZON* 204-2563798-75,279.9,0,279.9,Furniture,Misc. general merchandise
Buckinghamshire Council,31.03.2024,08.03.2024,"Planning, Growth & Sustainability",Planning & Regeneration - PGS,UBR* PENDING.UBER.COM,10.99,0,10.99,Staff Travelling Expenses,Taxicabs & limousines
Buckinghamshire Council,31.03.2024,08.03.2024,"Planning, Growth & Sustainability",Planning & Regeneration - PGS,THE FRONT ROOM,2.8,0,2.8,Subsistence,Restaurants
Buckinghamshire Council,31.03.2024,08.03.2024,Resources,AH&R - Res Dir,FACEBK Z7BQC2LUH2,25,0,25,Permanent Recruitment Costs,Advertising services
Buckinghamshire Council,31.03.2024,08.03.2024,"Planning, Growth & Sustainability",Housing & Homelessness & Regulatory PGS,TIMPSON LTD,27,0,27,Other General Office Expenses,Miscellaneous retail
Buckinghamshire Council,31.03.2024,08.03.2024,Adults and Health,Health & Wellbeing - Adults & Health Dir,ASDA GROCERIES ONLINE,88.98,0,88.98,General Provisions (Food),Grocery stores
Buckinghamshire Council,31.03.2024,08.03.2024,Adults and Health,Health & Wellbeing - Adults & Health Dir,ASDA GROCERIES ONLINE,-3.6,0,-3.6,General Provisions (Food),Grocery stores
Buckinghamshire Council,31.03.2024,08.03.2024,Children's Services,Education & Childrens Services - CS Dir,SLOUGH B/C ATP,88,0,88,Sec 20/31: Financial Assistance,Government services
Buckinghamshire Council,31.03.2024,08.03.2024,Children's Services,Education & Childrens Services - CS Dir,TRAINLINE,38.09,0,38.09,Sec 20/31: Supp for Contact,Passenger railways
Buckinghamshire Council,31.03.2024,08.03.2024,Adults and Health,Health & Wellbeing - Adults & Health Dir,PREMIER INN,104,0,104,Other Short Term Support,Premier Inn
Buckinghamshire Council,31.03.2024,08.03.2024,Children's Services,Education & Childrens Services - CS Dir,NEALES TAXIS LTD,416.65,83.33,499.98,Sec 20/31: Transport,Taxicabs & limousines
Buckinghamshire Council,31.03.2024,08.03.2024,Children's Services,Education & Childrens Services - CS Dir,NEALES TAXIS LTD,0.02,0,0.02,Sec 20/31: Transport,Taxicabs & limousines
Buckinghamshire Council,31.03.2024,08.03.2024,Adults and Health,Health & Wellbeing - Adults & Health Dir,POUNDLAND LTD - 2492,42.75,0,42.75,Activities & General Recreation,Discount stores
Buckinghamshire Council,31.03.2024,07.03.2024,"Planning, Growth & Sustainability",Planning & Regeneration - PGS,AMZNMKTPLACE,48.95,0,48.95,Stationery & Office Supplies,Miscellaneous retail
Buckinghamshire Council,31.03.2024,07.03.2024,"Planning, Growth & Sustainability",Planning & Regeneration - PGS,HSE - BSR,336,0,336,Reg & Exam Fees for External Courses,Government services
Buckinghamshire Council,31.03.2024,07.03.2024,Children's Services,Education & Childrens Services - CS Dir,FCDO,50,0,50,Sec 20/31: Specialist Services,Government services
Buckinghamshire Council,31.03.2024,07.03.2024,Children's Services,Education & Childrens Services - CS Dir,THE UNIVERSITY OF NOTTING,"1,981.00",0,"1,981.00",Leaving Care - Higher Education Supp,Colleges & universities
Buckinghamshire Council,31.03.2024,07.03.2024,Deputy Chief Executive,Communities - DCE,AO RETAIL LIMITED,561.66,112.34,674,Other Personal Needs,Household appliance stores
Buckinghamshire Council,31.03.2024,07.03.2024,Deputy Chief Executive,Communities - DCE,AO RETAIL LIMITED,694.16,138.84,833,Other Personal Needs,Household appliance stores
Buckinghamshire Council,31.03.2024,07.03.2024,Deputy Chief Executive,Communities - DCE,AO RETAIL LIMITED,694.16,138.84,833,Other Personal Needs,Household appliance stores
Buckinghamshire Council,31.03.2024,07.03.2024,Deputy Chief Executive,Communities - DCE,AO RETAIL LIMITED,719.16,143.84,863,Other Personal Needs,Household appliance stores
Buckinghamshire Council,31.03.2024,07.03.2024,Deputy Chief Executive,Communities - DCE,AO RETAIL LIMITED,719.16,143.84,863,Other Personal Needs,Household appliance stores
Buckinghamshire Council,31.03.2024,07.03.2024,Deputy Chief Executive,Communities - DCE,AO RETAIL LIMITED,499.16,99.84,599,Other Personal Needs,Household appliance stores
Buckinghamshire Council,31.03.2024,07.03.2024,Deputy Chief Executive,Communities - DCE,WWW.ARGOS.CO.UK,186.62,37.33,223.95,Other Personal Needs,Department stores
Buckinghamshire Council,31.03.2024,07.03.2024,Deputy Chief Executive,Communities - DCE,WWW.ARGOS.CO.UK,186.62,37.33,223.95,Other Personal Needs,Department stores
Buckinghamshire Council,31.03.2024,07.03.2024,Children's Services,Education & Childrens Services - CS Dir,APPLE.COM/UK,450,0,450,Computer Consumables,Electronics shops
Buckinghamshire Council,31.03.2024,07.03.2024,Resources,AH&R - Res Dir,ROYAL MAIL GROUP LTD,12.65,0,12.65,General Postage,Postal services
Buckinghamshire Council,31.03.2024,07.03.2024,Adults and Health,Health & Wellbeing - Adults & Health Dir,AMAZON* 204-8225066-70,27.92,0,27.92,Activities & General Recreation,Misc. general merchandise
Buckinghamshire Council,31.03.2024,07.03.2024,Children's Services,Education & Childrens Services - CS Dir,BUCKINGHAMSHIRE COUN MOT,11,0,11,Sec 20/31: Financial Assistance,Government services
Buckinghamshire Council,31.03.2024,07.03.2024,Communities,artnerships - Communities,MOXY MILTON KEYNES F AND,11.5,0,11.5,Miscellaneous (Other)  Expenses,Marriott Hotels
Buckinghamshire Council,31.03.2024,07.03.2024,Communities,artnerships - Communities,MOXY MILTON KEYNES F AND,6,0,6,Miscellaneous (Other)  Expenses,Marriott Hotels
Buckinghamshire Council,31.03.2024,07.03.2024,Communities,artnerships - Communities,MILTON_KEYNES_PARKING,2.5,0,2.5,Miscellaneous (Other)  Expenses,Car parking & garages
Buckinghamshire Council,31.03.2024,07.03.2024,"Planning, Growth & Sustainability",AH&R - PGS Dir,TOOLSTATION LTD,24.96,0,24.96,General Repairs & Maintenance,Timber & building supplies
Buckinghamshire Council,31.03.2024,07.03.2024,Children's Services,Education & Childrens Services - CS Dir,AMZNMKTPLACE,971.37,0,971.37,Other Equipment and Materials,Miscellaneous retail
Buckinghamshire Council,31.03.2024,07.03.2024,Children's Services,Education & Childrens Services - CS Dir,IN CAR SAFETY CENTRE,900,0,900,Equipment (including storage),Automotive parts & accessories
Buckinghamshire Council,31.03.2024,07.03.2024,Communities,Transport - Communities Dir,AMAZON* 204-5657377-07,874.99,0,874.99,Miscellaneous (Other)  Expenses,Misc. general merchandise
Buckinghamshire Council,31.03.2024,07.03.2024,Children's Services,Education & Childrens Services - CS Dir,AMAZON.CO.UK,19.34,0,19.34,"Books, Records, Films & Oth Publications",Direct sales companies
Buckinghamshire Council,31.03.2024,07.03.2024,Children's Services,Education & Childrens Services - CS Dir,WM MORRISONS STORE,47.65,0,47.65,General Provisions (Food),Grocery stores
Buckinghamshire Council,31.03.2024,07.03.2024,Communities,Climate Change & Environment - Community,PREMIER INN,162.98,0,162.98,Staff Travelling Expenses,Premier Inn
Buckinghamshire Council,31.03.2024,07.03.2024,Children's Services,Education & Childrens Services - CS Dir,B&M 426 - HS AYLESBURY,8.99,0,8.99,Other Equipment and Materials,Misc. general merchandise
Buckinghamshire Council,31.03.2024,07.03.2024,Children's Services,Education & Childrens Services - CS Dir,ODEON AYLESBURY,3.29,0,3.29,Miscellaneous (Other)  Expenses,Cinemas
Buckinghamshire Council,31.03.2024,07.03.2024,Children's Services,Education & Childrens Services - CS Dir,SMARTS FISH AND CHIPS,6.8,0,6.8,Miscellaneous (Other)  Expenses,Fast food restaurants
Buckinghamshire Council,31.03.2024,07.03.2024,Children's Services,Education & Childrens Services - CS Dir,TESCO STORES 2041,35.2,0,35.2,General Provisions (Food),Grocery stores
Buckinghamshire Council,31.03.2024,07.03.2024,Children's Services,Education & Childrens Services - CS Dir,TRAINLINE,78.64,0,78.64,Court Orders Sec 31: Supp. for Contact,Passenger railways
Buckinghamshire Council,31.03.2024,07.03.2024,Deputy Chief Executive,AH&R- DCE Dir,GAZEBOSHOP,87,0,87,Events Expenditure,Misc Durable goods
Buckinghamshire Council,31.03.2024,07.03.2024,Children's Services,Education & Childrens Services - CS Dir,AMAZON* 205-7376532-55,12,0,12,Leaving Care - Grants for Care Leavers,Misc. general merchandise
Buckinghamshire Council,31.03.2024,07.03.2024,Children's Services,Education & Childrens Services - CS Dir,AMAZON* 205-2738671-51,5.99,0,5.99,Leaving Care - Grants for Care Leavers,Misc. general merchandise
Buckinghamshire Council,31.03.2024,07.03.2024,Children's Services,Education & Childrens Services - CS Dir,GO WALLPAPER LTD,59.39,0,59.39,Equipment (including storage),Miscellaneous retail
Buckinghamshire Council,31.03.2024,07.03.2024,"Planning, Growth & Sustainability",Housing & Homelessness & Regulatory PGS,WWW.HSSTRAINING.COM,270,0,270,Course Fees & Post Entry Training,"Equipment, tool, furniture hire & leasing"
Buckinghamshire Council,31.03.2024,07.03.2024,"Planning, Growth & Sustainability",Housing & Homelessness & Regulatory PGS,AMAZON* 204-8503619-29,568.98,0,568.98,Furniture,Misc. general merchandise
Buckinghamshire Council,31.03.2024,07.03.2024,Children's Services,Education & Childrens Services - CS Dir,PREMIER INN,114.98,0,114.98,Sec 17: Financial Assistance,Premier Inn
Buckinghamshire Council,31.03.2024,07.03.2024,Deputy Chief Executive,AH&R- DCE Dir,PAYPAL,35.83,7.17,43,Other Personal Needs,Variety stores
Buckinghamshire Council,31.03.2024,07.03.2024,Deputy Chief Executive,Communities - DCE,PAYPAL,34.16,6.84,41,Other Personal Needs,Variety stores
Buckinghamshire Council,31.03.2024,07.03.2024,Deputy Chief Executive,Communities - DCE,PAYPAL,168.29,33.66,201.95,Other Personal Needs,Variety stores
Buckinghamshire Council,31.03.2024,07.03.2024,"Planning, Growth & Sustainability",AH&R - PGS Dir,AMAZON* 204-7036678-28,3.3,0.66,3.96,General Repairs & Maintenance,Misc. general merchandise
Buckinghamshire Council,31.03.2024,07.03.2024,"Planning, Growth & Sustainability",AH&R - PGS Dir,AMAZON* 204-7036678-28,0.02,0,0.02,General Repairs & Maintenance,Misc. general merchandise
Buckinghamshire Council,31.03.2024,07.03.2024,Children's Services,Education & Childrens Services - CS Dir,AMAZON* 204-9336621-52,292.76,0,292.76,Activities & General Recreation,Misc. general merchandise
Buckinghamshire Council,31.03.2024,07.03.2024,Children's Services,Education & Childrens Services - CS Dir,PAYPAL,"1,161.95",0,"1,161.95",Leaving Care - Grants for Care Leavers,Variety stores
Buckinghamshire Council,31.03.2024,07.03.2024,Children's Services,Education & Childrens Services - CS Dir,PAYPAL,279.99,0,279.99,Leaving Care - Grants for Care Leavers,Variety stores
Buckinghamshire Council,31.03.2024,07.03.2024,"Planning, Growth & Sustainability",Housing & Homelessness & Regulatory PGS,AMAZON* 204-4282210-04,84.9,0,84.9,Stationery & Office Supplies,Misc. general merchandise
Buckinghamshire Council,31.03.2024,06.03.2024,Children's Services,Education & Childrens Services - CS Dir,AMZNMKTPLACE,17.95,0,17.95,Miscellaneous (Other)  Expenses,Miscellaneous retail
Buckinghamshire Council,31.03.2024,06.03.2024,Children's Services,Education & Childrens Services - CS Dir,TRAINLINE,232.29,0,232.29,Sec 20/31: Supp for Contact,Passenger railways
Buckinghamshire Council,31.03.2024,06.03.2024,"Planning, Growth & Sustainability",Housing & Homelessness & Regulatory PGS,LAND REGISTRY ECOM CCC,3,0,3,Homelessness,Government services
Buckinghamshire Council,31.03.2024,06.03.2024,Deputy Chief Executive,Communities - DCE,AO RETAIL LIMITED,307.5,61.5,369,Other Personal Needs,Household appliance stores
Buckinghamshire Council,31.03.2024,06.03.2024,Deputy Chief Executive,Communities - DCE,AO RETAIL LIMITED,195,39,234,Other Personal Needs,Household appliance stores
Buckinghamshire Council,31.03.2024,06.03.2024,Resources,AH&R - Res Dir,CREDITSAFE BUSINESS SOLUT,144,0,144,Software Support,Consumer credit reporting agency
Buckinghamshire Council,31.03.2024,06.03.2024,Communities,Climate Change & Environment - Community,HIGH SPEED TRAINING,37.2,0,37.2,Waste Prevention costs,Schools
Buckinghamshire Council,31.03.2024,06.03.2024,Children's Services,Education & Childrens Services - CS Dir,POST OFFICE COUNTER,9.15,0,9.15,General Postage,Postal services
Buckinghamshire Council,31.03.2024,06.03.2024,Children's Services,Education & Childrens Services - CS Dir,APPLE.COM/UK,85,0,85,Computer Consumables,Electronics shops
Buckinghamshire Council,31.03.2024,06.03.2024,"Planning, Growth & Sustainability",Housing & Homelessness & Regulatory PGS,LAND REGISTRY ECOM CCC,3,0,3,Homelessness,Government services
Buckinghamshire Council,31.03.2024,06.03.2024,"Planning, Growth & Sustainability",Housing & Homelessness & Regulatory PGS,LAND REGISTRY ECOM CCC,3,0,3,Homelessness,Government services
Buckinghamshire Council,31.03.2024,06.03.2024,Communities,artnerships - Communities,TESCO STORES 2041,500,0,500,Miscellaneous (Other)  Expenses,Grocery stores
Buckinghamshire Council,31.03.2024,06.03.2024,"Planning, Growth & Sustainability",AH&R - PGS Dir,SCREWFIX DIR LTD,42.97,0,42.97,General Repairs & Maintenance,Timber & building supplies
Buckinghamshire Council,31.03.2024,06.03.2024,Resources,Communities - Resources,NEW YORK DELI (AYLESBURY),18,0,18,Subsistence,Restaurants
Buckinghamshire Council,31.03.2024,06.03.2024,Resources,Communities - Resources,POUNDLAND LTD - 1301,10,0,10,Emergency Expenses,Discount stores
Buckinghamshire Council,31.03.2024,06.03.2024,Children's Services,Education & Childrens Services - CS Dir,AMZNMKTPLACE,13.2,0,13.2,"Books, Records, Films & Oth Publications",Miscellaneous retail
Buckinghamshire Council,31.03.2024,06.03.2024,Children's Services,Education & Childrens Services - CS Dir,AMAZON.CO.UK,9.09,0,9.09,"Books, Records, Films & Oth Publications",Direct sales companies
Buckinghamshire Council,31.03.2024,06.03.2024,Adults and Health,Health & Wellbeing - Adults & Health Dir,BKG*HOTEL AT BOOKING.C,567,0,567,Other Short Term Support,Travel agencies
Buckinghamshire Council,31.03.2024,06.03.2024,Children's Services,Education & Childrens Services - CS Dir,CAROUSELBUSES.CO.UK,5,0,5,Sec 20/31: Transport,Local commuter transport
Buckinghamshire Council,31.03.2024,06.03.2024,Children's Services,Education & Childrens Services - CS Dir,TRAINLINE,31.19,0,31.19,Sec 20/31: Transport,Passenger railways
Buckinghamshire Council,31.03.2024,06.03.2024,Children's Services,Education & Childrens Services - CS Dir,TRAINLINE,27.29,0,27.29,Sec 20/31: Transport,Passenger railways
Buckinghamshire Council,31.03.2024,06.03.2024,Children's Services,Education & Childrens Services - CS Dir,BUCKINGHAMSHIRE CNCL,11,0,11,Sec 20/31: Transport,Government services
Buckinghamshire Council,31.03.2024,06.03.2024,Children's Services,Education & Childrens Services - CS Dir,BUCKINGHAMSHIRE CNCL,11,0,11,Sec 20/31: Transport,Government services
Buckinghamshire Council,31.03.2024,06.03.2024,Children's Services,Education & Childrens Services - CS Dir,ODEON AYLESBURY,4.5,0,4.5,Miscellaneous (Other)  Expenses,Cinemas
Buckinghamshire Council,31.03.2024,06.03.2024,Children's Services,Education & Childrens Services - CS Dir,TESCO STORES 2041,30.55,0,30.55,Miscellaneous (Other)  Expenses,Grocery stores
Buckinghamshire Council,31.03.2024,06.03.2024,Children's Services,Education & Childrens Services - CS Dir,TRAINLINE,19.49,0,19.49,Sec 20/31: Supp for Contact,Passenger railways
Buckinghamshire Council,31.03.2024,06.03.2024,Children's Services,Education & Childrens Services - CS Dir,SUMUP  *CABS4U,165,0,165,Sec 17: Financial Assistance,Taxicabs & limousines
Buckinghamshire Council,31.03.2024,06.03.2024,Adults and Health,Health & Wellbeing - Adults & Health Dir,AMAZON* 204-0215801-79,32,6.4,38.4,Stationery & Office Supplies,Misc. general merchandise
Buckinghamshire Council,31.03.2024,06.03.2024,Deputy Chief Executive,AH&R- DCE Dir,PAYPAL,"1,150.63",230.14,"1,380.77",Miscellaneous (Other)  Expenses,Variety stores
Buckinghamshire Council,31.03.2024,06.03.2024,Adults and Health,Health & Wellbeing - Adults & Health Dir,AMAZON* 204-9948618-48,239.97,48,287.97,Equipment,Misc. general merchandise
Buckinghamshire Council,31.03.2024,06.03.2024,Adults and Health,Health & Wellbeing - Adults & Health Dir,AMAZON* 204-7625284-41,159.98,32,191.98,Equipment,Misc. general merchandise
Buckinghamshire Council,31.03.2024,06.03.2024,Adults and Health,Health & Wellbeing - Adults & Health Dir,AMAZON* 204-1726188-15,79.99,16,95.99,Equipment,Misc. general merchandise
Buckinghamshire Council,31.03.2024,05.03.2024,Communities,artnerships - Communities,AMZNMKTPLACE,11.98,0,11.98,Equipment,Miscellaneous retail
Buckinghamshire Council,31.03.2024,05.03.2024,Communities,Housing & Homelessness & Regulatory PGS,AMAZON* 204-0147368-51,20.8,4.16,24.96,Administrative Equipment & Tools,Misc. general merchandise
Buckinghamshire Council,31.03.2024,05.03.2024,Communities,Housing & Homelessness & Regulatory PGS,AMAZON* 204-0147368-51,0.02,0,0.02,Administrative Equipment & Tools,Misc. general merchandise
Buckinghamshire Council,31.03.2024,05.03.2024,"Planning, Growth & Sustainability",Housing & Homelessness & Regulatory PGS,PREMIER INN,571,0,571,Homelessness,Premier Inn
Buckinghamshire Council,31.03.2024,05.03.2024,Communities,Culture & Leisure - Communities Dir,SAINSBURY S S/MKTS,13.8,0,13.8,Printing & Stationery,Grocery stores
Buckinghamshire Council,31.03.2024,05.03.2024,Adults and Health,Health & Wellbeing - Adults & Health Dir,QR-CODE-GENERATOR.COM,101.76,0,101.76,Computer Consumables,Computer software stores
Buckinghamshire Council,31.03.2024,05.03.2024,Children's Services,Education & Childrens Services - CS Dir,AMAZON* 204-6947003-41,17.98,0,17.98,"Workshop - Materials,Tools & Equipment",Misc. general merchandise
Buckinghamshire Council,31.03.2024,05.03.2024,Children's Services,Education & Childrens Services - CS Dir,TRAVELODGE GB0000,"1,017.40",203.48,"1,220.88",Sec 17: Financial Assistance,Travelodge
Buckinghamshire Council,31.03.2024,05.03.2024,Children's Services,Education & Childrens Services - CS Dir,TRAVELODGE GB0000,0.06,0,0.06,Sec 17: Financial Assistance,Travelodge
Buckinghamshire Council,31.03.2024,05.03.2024,Children's Services,Education & Childrens Services - CS Dir,TESCO STORES 2038,155.3,0,155.3,General Provisions (Food),Grocery stores
Buckinghamshire Council,31.03.2024,05.03.2024,Children's Services,Education & Childrens Services - CS Dir,POUNDLAND LTD - 2492,15,0,15,General Provisions (Food),Discount stores
Buckinghamshire Council,31.03.2024,05.03.2024,Deputy Chief Executive,Communities - DCE,WWW.ARGOS.CO.UK,436.62,87.33,523.95,Other Personal Needs,Department stores
Buckinghamshire Council,31.03.2024,05.03.2024,Deputy Chief Executive,Communities - DCE,AO RETAIL LIMITED,727.5,145.5,873,Other Personal Needs,Household appliance stores
Buckinghamshire Council,31.03.2024,05.03.2024,Communities,Housing & Homelessness & Regulatory PGS,BUCKINGHAMSHIRE COUNCIL,22,0,22,Burial Costs,Government services
Buckinghamshire Council,31.03.2024,05.03.2024,"Planning, Growth & Sustainability",AH&R - PGS Dir,ASDA SUPERSTORE,17,0,17,General Provisions (Food),Grocery stores
Buckinghamshire Council,31.03.2024,05.03.2024,Children's Services,Education & Childrens Services - CS Dir,ONE BELOW,16,0,16,Miscellaneous (Other)  Expenses,Grocery stores
Buckinghamshire Council,31.03.2024,05.03.2024,Adults and Health,Health & Wellbeing - Adults & Health Dir,AMZNMKTPLACE,186.44,0,186.44,Activities & General Recreation,Miscellaneous retail
Buckinghamshire Council,31.03.2024,05.03.2024,Adults and Health,Health & Wellbeing - Adults & Health Dir,AMZNMKTPLACE,240.72,0,240.72,Activities & General Recreation,Miscellaneous retail
Buckinghamshire Council,31.03.2024,05.03.2024,Children's Services,Education & Childrens Services - CS Dir,ASDA GEORGE COM LEEDS,383.1,76.62,459.72,Educational Equipment,Grocery stores
Buckinghamshire Council,31.03.2024,05.03.2024,Children's Services,Education & Childrens Services - CS Dir,ASDA GEORGE COM LEEDS,0.28,0,0.28,Educational Equipment,Grocery stores
Buckinghamshire Council,31.03.2024,05.03.2024,Children's Services,Education & Childrens Services - CS Dir,ASDA GEORGE COM LEEDS,383.1,76.62,459.72,Educational Equipment,Grocery stores
Buckinghamshire Council,31.03.2024,05.03.2024,Children's Services,Education & Childrens Services - CS Dir,ASDA GEORGE COM LEEDS,0.28,0,0.28,Educational Equipment,Grocery stores
Buckinghamshire Council,31.03.2024,05.03.2024,Children's Services,Education & Childrens Services - CS Dir,TESCO STORES 2038,20,0,20,Miscellaneous (Other)  Expenses,Grocery stores
Buckinghamshire Council,31.03.2024,05.03.2024,Children's Services,Education & Childrens Services - CS Dir,AMZNMKTPLACE,22.1,0,22.1,"Books, Records, Films & Oth Publications",Miscellaneous retail
Buckinghamshire Council,31.03.2024,05.03.2024,Communities,Climate Change & Environment - Community,LONDON NORTHWEST WEB,37.05,0,37.05,Staff Travelling Expenses,Passenger railways
Buckinghamshire Council,31.03.2024,05.03.2024,Communities,Culture & Leisure - Communities Dir,TOOLSTATION LTD,12.6,2.52,15.12,Protective Clothing & Uniforms,Timber & building supplies
Buckinghamshire Council,31.03.2024,05.03.2024,Communities,Culture & Leisure - Communities Dir,TOOLSTATION LTD,0.02,0,0.02,Protective Clothing & Uniforms,Timber & building supplies
Buckinghamshire Council,31.03.2024,05.03.2024,Communities,Climate Change & Environment - Community,DVLA VEHICLE TAX,180,0,180,Vehicle Hire,Tax payments
Buckinghamshire Council,31.03.2024,05.03.2024,Children's Services,Education & Childrens Services - CS Dir,THE ENTERTAINER 113,27.5,0,27.5,Miscellaneous (Other)  Expenses,"Hobby, toy & game shops"
Buckinghamshire Council,31.03.2024,05.03.2024,Children's Services,Education & Childrens Services - CS Dir,SENSORY TOYS4U RETAIL,103.31,0,103.31,Miscellaneous (Other)  Expenses,Miscellaneous retail
Buckinghamshire Council,31.03.2024,05.03.2024,Children's Services,Education & Childrens Services - CS Dir,HM PASSPORT OFFICE,53.5,0,53.5,Sec 20/31: Financial Assistance,Government services
Buckinghamshire Council,31.03.2024,05.03.2024,Children's Services,Education & Childrens Services - CS Dir,HM PASSPORT OFFICE,53.5,0,53.5,Sec 20/31: Financial Assistance,Government services
Buckinghamshire Council,31.03.2024,05.03.2024,Children's Services,Education & Childrens Services - CS Dir,WWW.ANYVAN.COM,373,0,373,Sec 20/31: Financial Assistance,"Haulage, removals & delivery"
Buckinghamshire Council,31.03.2024,05.03.2024,Children's Services,Education & Childrens Services - CS Dir,BUCKINGHAMSHIRE CNCL,11,0,11,Sec 20/31: Financial Assistance,Government services
Buckinghamshire Council,31.03.2024,05.03.2024,Children's Services,Education & Childrens Services - CS Dir,BUCKINGHAMSHIRE CNCL,11,0,11,Sec 20/31: Financial Assistance,Government services
Buckinghamshire Council,31.03.2024,05.03.2024,Communities,Culture & Leisure - Communities Dir,SAINSBURYS S/MKTS,9.3,0,9.3,Miscellaneous (Other)  Expenses,Grocery stores
Buckinghamshire Council,31.03.2024,05.03.2024,Children's Services,Education & Childrens Services - CS Dir,TESCO STORES 2041,100.38,0,100.38,General Provisions (Food),Grocery stores
Buckinghamshire Council,31.03.2024,05.03.2024,Children's Services,Education & Childrens Services - CS Dir,CURRYS ONLINE,833,0,833,Leaving Care - Grants for Care Leavers,Electronics shops
Buckinghamshire Council,31.03.2024,05.03.2024,Children's Services,Education & Childrens Services - CS Dir,WWW.ARGOS.CO.UK,256.95,0,256.95,Leaving Care - Grants for Care Leavers,Department stores
Buckinghamshire Council,31.03.2024,05.03.2024,"Planning, Growth & Sustainability",Housing & Homelessness & Regulatory PGS,TRAVELODGE GB0000,404.95,0,404.95,Bed & Breakfast,Travelodge
Buckinghamshire Council,31.03.2024,05.03.2024,Communities,Culture & Leisure - Communities Dir,AMZNMKTPLACE,35.49,0,35.49,Events Expenditure,Miscellaneous retail
Buckinghamshire Council,31.03.2024,05.03.2024,Children's Services,Education & Childrens Services - CS Dir,THE WORKS,8,0,8,Miscellaneous (Other)  Expenses,Discount stores
Buckinghamshire Council,31.03.2024,05.03.2024,Deputy Chief Executive,AH&R- DCE Dir,AMAZON.CO.UK,100,0,100,Stationery & Office Supplies,Direct sales companies
Buckinghamshire Council,31.03.2024,05.03.2024,Children's Services,Education & Childrens Services - CS Dir,TRAINLINE,44.29,0,44.29,Sec 20/31: Supp for Contact,Passenger railways
Buckinghamshire Council,31.03.2024,05.03.2024,Communities,Transport - Communities Dir,POST OFFICE COUNTER,7.35,0,7.35,General Postage,Postal services
Buckinghamshire Council,31.03.2024,05.03.2024,Adults and Health,Health & Wellbeing - Adults & Health Dir,SWAN RIDER,"1,302.00",0,"1,302.00",Staff Travelling Expenses,Transportation services
Buckinghamshire Council,31.03.2024,05.03.2024,Communities,Housing & Homelessness & Regulatory Comm,AMZNMKTPLACE,18.95,0,18.95,Maintenance of Grounds,Miscellaneous retail
Buckinghamshire Council,31.03.2024,05.03.2024,Children's Services,Education & Childrens Services - CS Dir,AMAZON* 204-6666745-14,192.54,0,192.54,Miscellaneous (Other)  Expenses,Misc. general merchandise
Buckinghamshire Council,31.03.2024,05.03.2024,Children's Services,Education & Childrens Services - CS Dir,AMAZON* 204-8311318-79,248.37,0,248.37,Miscellaneous (Other)  Expenses,Misc. general merchandise
Buckinghamshire Council,31.03.2024,05.03.2024,Children's Services,Education & Childrens Services - CS Dir,AMAZON* 203-6602620-74,38.95,7.79,46.74,Administrative Equipment & Tools,Misc. general merchandise
Buckinghamshire Council,31.03.2024,05.03.2024,Communities,Culture & Leisure - Communities Dir,IONOS CLOUD LTD,8.44,0,8.44,Computer Support Services,Computer network information services
Buckinghamshire Council,31.03.2024,05.03.2024,Children's Services,Education & Childrens Services - CS Dir,AMAZON* 204-5341888-32,127.01,0,127.01,"Books, Records, Films & Oth Publications",Misc. general merchandise
Buckinghamshire Council,31.03.2024,05.03.2024,Children's Services,Education & Childrens Services - CS Dir,TRAINLINE,-14.3,0,-14.3,Sec 20/31: Supp for Contact,Passenger railways
Buckinghamshire Council,31.03.2024,05.03.2024,Children's Services,Education & Childrens Services - CS Dir,TRAINLINE,-8.6,0,-8.6,Sec 20/31: Supp for Contact,Passenger railways
Buckinghamshire Council,31.03.2024,04.03.2024,Resources,Communities - Resources,AMZNMKTPLACE,64.55,0,64.55,Emergency Expenses,Miscellaneous retail
Buckinghamshire Council,31.03.2024,04.03.2024,"Planning, Growth & Sustainability",Partnership Climate Change & Envir - PGS,TRAINLINE,33.89,0,33.89,Staff Travelling Expenses,Passenger railways
Buckinghamshire Council,31.03.2024,04.03.2024,"Planning, Growth & Sustainability",Planning & Regeneration - PGS,HSE - BSR,336,0,336,Reg & Exam Fees for External Courses,Government services
Buckinghamshire Council,31.03.2024,04.03.2024,"Planning, Growth & Sustainability",Planning & Regeneration - PGS,HSE - BSR,336,0,336,Reg & Exam Fees for External Courses,Government services
Buckinghamshire Council,31.03.2024,04.03.2024,Children's Services,Education & Childrens Services - CS Dir,TRAINLINE,24.79,0,24.79,Sec 20/31: Supp for Contact,Passenger railways
Buckinghamshire Council,31.03.2024,04.03.2024,Children's Services,Education & Childrens Services - CS Dir,WM MORRISONS STORE,2,0,2,"Exp of School, Club & College Activities",Grocery stores
Buckinghamshire Council,31.03.2024,04.03.2024,Children's Services,Education & Childrens Services - CS Dir,DOMINO S PIZZA,34.27,0,34.27,"Exp of School, Club & College Activities",Restaurants
Buckinghamshire Council,31.03.2024,04.03.2024,Children's Services,Education & Childrens Services - CS Dir,TESCO STORES 2038,120.21,0,120.21,General Provisions (Food),Grocery stores
Buckinghamshire Council,31.03.2024,04.03.2024,Deputy Chief Executive,Communities - DCE,WWW.ARGOS.CO.UK,222.45,44.49,266.94,Other Personal Needs,Department stores
Buckinghamshire Council,31.03.2024,04.03.2024,Deputy Chief Executive,Communities - DCE,WWW.ARGOS.CO.UK,0.01,0,0.01,Other Personal Needs,Department stores
Buckinghamshire Council,31.03.2024,04.03.2024,Deputy Chief Executive,Communities - DCE,WWW.ARGOS.CO.UK,890.79,178.16,"1,068.95",Other Personal Needs,Department stores
Buckinghamshire Council,31.03.2024,04.03.2024,Deputy Chief Executive,Communities - DCE,WWW.ARGOS.CO.UK,222.45,44.49,266.94,Other Personal Needs,Department stores
Buckinghamshire Council,31.03.2024,04.03.2024,Deputy Chief Executive,Communities - DCE,WWW.ARGOS.CO.UK,0.01,0,0.01,Other Personal Needs,Department stores
Buckinghamshire Council,31.03.2024,04.03.2024,Deputy Chief Executive,Communities - DCE,AO RETAIL LIMITED,701.66,140.34,842,Other Personal Needs,Household appliance stores
Buckinghamshire Council,31.03.2024,04.03.2024,Deputy Chief Executive,Communities - DCE,AO RETAIL LIMITED,274.16,54.84,329,Other Personal Needs,Household appliance stores
Buckinghamshire Council,31.03.2024,04.03.2024,Deputy Chief Executive,Communities - DCE,AO RETAIL LIMITED,700,140,840,Other Personal Needs,Household appliance stores
Buckinghamshire Council,31.03.2024,04.03.2024,Deputy Chief Executive,Communities - DCE,AO RETAIL LIMITED,7,0,7,Other Personal Needs,Household appliance stores
Buckinghamshire Council,31.03.2024,04.03.2024,Deputy Chief Executive,Communities - DCE,AO RETAIL LIMITED,676.66,135.34,812,Other Personal Needs,Household appliance stores
Buckinghamshire Council,31.03.2024,04.03.2024,Deputy Chief Executive,Communities - DCE,AO RETAIL LIMITED,784.99,157.01,942,Other Personal Needs,Household appliance stores
Buckinghamshire Council,31.03.2024,04.03.2024,Communities,Climate Change & Environment - Community,DVLA VEHICLE TAX,90.75,0,90.75,Vehicle Insurance,Tax payments
Buckinghamshire Council,31.03.2024,04.03.2024,Communities,Climate Change & Environment - Community,DVLA VEHICLE TAX,240,0,240,Vehicle Insurance,Tax payments
Buckinghamshire Council,31.03.2024,04.03.2024,Communities,Climate Change & Environment - Community,DVLA VEHICLE TAX,90.75,0,90.75,Vehicle Insurance,Tax payments
Buckinghamshire Council,31.03.2024,04.03.2024,"Planning, Growth & Sustainability",AH&R - PGS Dir,AMAZON* 204-6450005-76,27.8,0,27.8,Security & Safety Supplies & Equipment,Misc. general merchandise
Buckinghamshire Council,31.03.2024,04.03.2024,Children's Services,Education & Childrens Services - CS Dir,BUCKINGHAM HOTELS,"1,890.00",0,"1,890.00",Sec 17: Accommodation,"Hotels, motels & resorts"
Buckinghamshire Council,31.03.2024,04.03.2024,Children's Services,Education & Childrens Services - CS Dir,BUCKINGHAM HOTELS,"1,890.00",0,"1,890.00",Sec 17: Accommodation,"Hotels, motels & resorts"
Buckinghamshire Council,31.03.2024,04.03.2024,Adults and Health,Health & Wellbeing - Adults & Health Dir,SMYTHS TOYS,129.99,0,129.99,Activities & General Recreation,Misc. general merchandise
Buckinghamshire Council,31.03.2024,04.03.2024,Children's Services,Education & Childrens Services - CS Dir,BOUNDS TAXIS,40,0,40,Sec 20/31: Transport,Taxicabs & limousines
Buckinghamshire Council,31.03.2024,04.03.2024,Resources,AH&R - Res Dir,GEN REGISTER OFFICE,14,0,14,Miscellaneous (Other)  Expenses,Government services
Buckinghamshire Council,31.03.2024,04.03.2024,Resources,AH&R - Res Dir,TRAINLINE,43,0,43,Staff Travelling Expenses,Passenger railways
Buckinghamshire Council,31.03.2024,04.03.2024,Children's Services,Education & Childrens Services - CS Dir,SAINSBURY S S/MKTS,12.7,0,12.7,Activities & General Recreation,Grocery stores
Buckinghamshire Council,31.03.2024,04.03.2024,Children's Services,Education & Childrens Services - CS Dir,HOO*HOOTSUITE INC,123.84,0,123.84,Marketing,Misc business services
Buckinghamshire Council,31.03.2024,04.03.2024,Deputy Chief Executive,AH&R- DCE Dir,KITE PACKAGING LIMITED,159.3,31.86,191.16,Stationery & Office Supplies,Misc. general merchandise
Buckinghamshire Council,31.03.2024,04.03.2024,Children's Services,Education & Childrens Services - CS Dir,BT BUSINESS BILL,52.46,0,52.46,Telephones,Phone services
Buckinghamshire Council,31.03.2024,04.03.2024,Adults and Health,Health & Wellbeing - Adults & Health Dir,TESCO STORES 5135,247.41,0,247.41,General Provisions (Food),Grocery stores
Buckinghamshire Council,31.03.2024,04.03.2024,Communities,ommunities - Trust Accounts,CO-OP GROUP FOOD,9.9,0,9.9,Purchase of Food for Re-sale,Grocery stores
Buckinghamshire Council,31.03.2024,04.03.2024,"Planning, Growth & Sustainability",Planning & Regeneration - PGS,ARRIVA THE SHIRES LIMITED,1.6,0,1.6,Staff Travelling Expenses,"Buses, charter & tour"
Buckinghamshire Council,31.03.2024,04.03.2024,Adults and Health,Health & Wellbeing - Adults & Health Dir,EVENT LISTING FEE,8.17,0,8.17,Events Expenditure,Computer software stores
Buckinghamshire Council,31.03.2024,04.03.2024,Adults and Health,Health & Wellbeing - Adults & Health Dir,ASDA GROCERIES ONLINE,84.63,0,84.63,General Provisions (Food),Grocery stores
Buckinghamshire Council,31.03.2024,04.03.2024,Adults and Health,Health & Wellbeing - Adults & Health Dir,ASDA GROCERIES ONLINE,-2.2,0,-2.2,General Provisions (Food),Grocery stores
Buckinghamshire Council,31.03.2024,04.03.2024,Children's Services,Education & Childrens Services - CS Dir,PREMIER INN,89.99,0,89.99,Sec 17: Financial Assistance,Premier Inn
Buckinghamshire Council,31.03.2024,04.03.2024,Communities,artnerships - Communities,BUCKINGHAMSHIRE COUN MOT,"1,500.00",300,"1,800.00",Miscellaneous (Other)  Expenses,Government services
Buckinghamshire Council,31.03.2024,04.03.2024,Communities,artnerships - Communities,BT BUSINESS BILL,64,12.8,76.8,Telephones,Phone services
Buckinghamshire Council,31.03.2024,04.03.2024,Communities,artnerships - Communities,BT BUSINESS BILL,0.01,0,0.01,Telephones,Phone services
Buckinghamshire Council,31.03.2024,04.03.2024,Communities,artnerships - Communities,TRAINLINE,28.89,0,28.89,Staff Travelling Expenses,Passenger railways
Buckinghamshire Council,31.03.2024,04.03.2024,Communities,artnerships - Communities,TRAINLINE,25.69,0,25.69,Staff Travelling Expenses,Passenger railways
Buckinghamshire Council,31.03.2024,04.03.2024,Communities,artnerships - Communities,TRAINLINE,27.09,0,27.09,Staff Travelling Expenses,Passenger railways
Buckinghamshire Council,31.03.2024,04.03.2024,Resources,AH&R - Res Dir,GEN REGISTER OFFICE,-7.5,0,-7.5,Miscellaneous (Other)  Expenses,Government services
Buckinghamshire Council,31.03.2024,03.03.2024,"Planning, Growth & Sustainability",Housing & Homelessness & Regulatory PGS,PREMIER INN,745,0,745,Homelessness,Premier Inn
Buckinghamshire Council,31.03.2024,03.03.2024,"Planning, Growth & Sustainability",Housing & Homelessness & Regulatory PGS,AMZNMKTPLACE,31.68,0,31.68,Furniture,Miscellaneous retail
Buckinghamshire Council,31.03.2024,03.03.2024,Resources,AH&R - Res Dir,SURVEYMONK* T 45366003,384,0,384,Computer Consumables,Computer software stores
Buckinghamshire Council,31.03.2024,02.03.2024,"Planning, Growth & Sustainability",Partnership Climate Change & Envir - PGS,AWS EMEA,71.07,0,71.07,Computer Software Licences & Purchase,Misc business services
Buckinghamshire Council,31.03.2024,02.03.2024,Communities,Culture & Leisure - Communities Dir,EBAY O*10-11259-08701,6.93,0,6.93,"Books, Records, Films & Oth Publications",Department stores
Buckinghamshire Council,31.03.2024,02.03.2024,Children's Services,Education & Childrens Services - CS Dir,BOUNDS TAXIS,18.5,0,18.5,Sec 20/31: Transport,Taxicabs & limousines
Buckinghamshire Council,31.03.2024,02.03.2024,Communities,Culture & Leisure - Communities Dir,TIMPSON LTD,30,6,36,"Workshop - Materials,Tools & Equipment",Miscellaneous retail
Buckinghamshire Council,31.03.2024,02.03.2024,Deputy Chief Executive,AH&R- DCE Dir,OXFORD BUS COMPANY,1,0,1,Staff Travelling Expenses,"Buses, charter & tour"
Buckinghamshire Council,31.03.2024,02.03.2024,Resources,AH&R - Res Dir,AWS EMEA,6.99,0,6.99,Software Support,Misc business services
Buckinghamshire Council,31.03.2024,01.03.2024,Children's Services,Education & Childrens Services - CS Dir,AMAZON.CO.UK,30,0,30,"Books, Records, Films & Oth Publications",Direct sales companies
Buckinghamshire Council,31.03.2024,01.03.2024,Communities,Culture & Leisure - Communities Dir,AMZNMKTPLACE,11.4,2.28,13.68,"Workshop - Materials,Tools & Equipment",Miscellaneous retail
Buckinghamshire Council,31.03.2024,01.03.2024,Communities,Culture & Leisure - Communities Dir,AMZNMKTPLACE,0.03,0,0.03,"Workshop - Materials,Tools & Equipment",Miscellaneous retail
Buckinghamshire Council,31.03.2024,01.03.2024,Children's Services,Education & Childrens Services - CS Dir,BUCKINGHAMSHIRE CNCL,-70,0,-70,Sec 20/31: Financial Assistance,Government services
Buckinghamshire Council,31.03.2024,01.03.2024,Children's Services,Education & Childrens Services - CS Dir,TRAINLINE,59.54,0,59.54,Miscellaneous (Other)  Expenses,Passenger railways
Buckinghamshire Council,31.03.2024,01.03.2024,Children's Services,Education & Childrens Services - CS Dir,DUNELM SOFTFURNISHINGS,195,0,195,Leaving Care - Grants for Care Leavers,Furniture & home furnishing
Buckinghamshire Council,31.03.2024,01.03.2024,Children's Services,Education & Childrens Services - CS Dir,MH STAR UK LTD,87.99,0,87.99,Leaving Care - Grants for Care Leavers,Furniture & home furnishing
Buckinghamshire Council,31.03.2024,01.03.2024,Deputy Chief Executive,Communities - DCE,AO RETAIL LIMITED,502.5,100.5,603,Other Personal Needs,Household appliance stores
Buckinghamshire Council,31.03.2024,01.03.2024,Deputy Chief Executive,Communities - DCE,AO RETAIL LIMITED,199.16,39.84,239,Other Personal Needs,Household appliance stores
Buckinghamshire Council,31.03.2024,01.03.2024,Deputy Chief Executive,Communities - DCE,AO RETAIL LIMITED,676.66,135.34,812,Other Personal Needs,Household appliance stores
Buckinghamshire Council,31.03.2024,01.03.2024,Deputy Chief Executive,Communities - DCE,WWW.ARGOS.CO.UK,547.45,109.49,656.94,Other Personal Needs,Department stores
Buckinghamshire Council,31.03.2024,01.03.2024,Deputy Chief Executive,Communities - DCE,WWW.ARGOS.CO.UK,0.01,0,0.01,Other Personal Needs,Department stores
Buckinghamshire Council,31.03.2024,01.03.2024,Communities,Housing & Homelessness & Regulatory PGS,DB MASTER LOCKSMITH LT,90,18,108,Burial Costs,Computer software stores
Buckinghamshire Council,31.03.2024,01.03.2024,Children's Services,Education & Childrens Services - CS Dir,DIRECT CARS,280,0,280,Sec 20/31: Transport,Taxicabs & limousines
Buckinghamshire Council,31.03.2024,01.03.2024,Children's Services,Education & Childrens Services - CS Dir,BUCKINGHAMSHIRE CNCL,22,0,22,Sec 20/31: Financial Assistance One Off,Government services
Buckinghamshire Council,31.03.2024,01.03.2024,Resources,AH&R - Res Dir,TRAINLINE,11.59,0,11.59,Staff Travelling Expenses,Passenger railways
Buckinghamshire Council,31.03.2024,01.03.2024,Communities,Transport - Communities Dir,HALFORDS 0894,45.97,0,45.97,Vehicle Hire,"Bicycle shops, sales & service"
Buckinghamshire Council,31.03.2024,01.03.2024,Adults and Health,Health & Wellbeing - Adults & Health Dir,MYHENRY.CO.UK,208.32,0,249.99,Activities & General Recreation,Electrical parts & equipment
Buckinghamshire Council,31.03.2024,01.03.2024,Communities,Culture & Leisure - Communities Dir,WWW.SCREWFIX.COM,14.99,3,17.99,"Workshop - Materials,Tools & Equipment",Timber & building supplies
Buckinghamshire Council,31.03.2024,01.03.2024,Communities,artnerships - Communities,CAR PARK CHARGES,2.1,0,2.1,Miscellaneous (Other)  Expenses,Car parking & garages
Buckinghamshire Council,31.03.2024,01.03.2024,Communities,Housing & Homelessness & Regulatory Comm,SHELL HAZLEMERE,14.02,0,14.02,Maintenance of Grounds,Service stations
Buckinghamshire Council,31.03.2024,01.03.2024,Resources,AH&R - Res Dir,GEN REGISTER OFFICE,14,0,14,Miscellaneous (Other)  Expenses,Government services
Buckinghamshire Council,31.03.2024,01.03.2024,Adults and Health,Communities - Adults & Health,COSTCO WHOLESALE #115,48.56,0,48.56,Project Funding,Buying & shopping services/clubs
Buckinghamshire Council,31.03.2024,01.03.2024,Children's Services,Education & Childrens Services - CS Dir,123*FLOWERS,24.99,0,24.99,Support for Foster Carers,Florists
Buckinghamshire Council,31.03.2024,01.03.2024,Children's Services,Education & Childrens Services - CS Dir,123*FLOWERS,24.99,0,24.99,Support for Foster Carers,Florists
Buckinghamshire Council,31.03.2024,01.03.2024,Children's Services,Education & Childrens Services - CS Dir,123*FLOWERS,24.99,0,24.99,Support for Foster Carers,Florists
Buckinghamshire Council,31.03.2024,01.03.2024,"Planning, Growth & Sustainability",Planning & Regeneration - PGS,HSE - BSR,336,0,336,Reg & Exam Fees for External Courses,Government services
Buckinghamshire Council,31.03.2024,01.03.2024,Children's Services,Education & Childrens Services - CS Dir,KING DO,8.1,0,8.1,Subsistence,Restaurants
Buckinghamshire Council,31.03.2024,01.03.2024,Children's Services,Education & Childrens Services - CS Dir,ASDA GROCERIES ONLINE,43.53,0,43.53,Furniture,Grocery stores
Buckinghamshire Council,31.03.2024,01.03.2024,Communities,Climate Change & Environment - Community,AMAZON* 026-6764289-47,37.99,0,37.99,Waste Prevention costs,Misc. general merchandise
Buckinghamshire Council,31.03.2024,01.03.2024,Communities,Climate Change & Environment - Community,AMAZON* 026-1378952-20,29.59,0,29.59,Waste Prevention costs,Misc. general merchandise
Buckinghamshire Council,31.03.2024,01.03.2024,Adults and Health,Health & Wellbeing - Adults & Health Dir,NEALES TAXIS LTD,40,0,40,Staff Travelling Expenses,Taxicabs & limousines
Buckinghamshire Council,31.03.2024,01.03.2024,Communities,Culture & Leisure - Communities Dir,PAYPAL,530.85,0,530.85,"Workshop - Materials,Tools & Equipment",Misc business services
Buckinghamshire Council,31.03.2024,01.03.2024,Children's Services,Education & Childrens Services - CS Dir,WWW.THERANGE.CO.UK,261.98,0,261.98,Equipment (including storage),Misc. home furnishing
Buckinghamshire Council,31.03.2024,01.03.2024,Children's Services,Education & Childrens Services - CS Dir,ASDA  STORES 4396,14.45,0,14.45,General Provisions (Food),Grocery stores
Buckinghamshire Council,31.03.2024,01.03.2024,Children's Services,Education & Childrens Services - CS Dir,TESCO STORES 2041,25.77,0,25.77,General Provisions (Food),Grocery stores
Buckinghamshire Council,31.03.2024,01.03.2024,Adults and Health,Health & Wellbeing - Adults & Health Dir,SPOTIFY,174.34,0,174.34,Advertising,
Buckinghamshire Council,31.03.2024,01.03.2024,"Planning, Growth & Sustainability",Housing & Homelessness & Regulatory PGS,IKEA LTD SHOP ONLINE,288,0,288,Furniture,Furniture & home furnishing
Buckinghamshire Council,31.03.2024,01.03.2024,Children's Services,Education & Childrens Services - CS Dir,TRAINLINE,91.69,0,91.69,Staff Travelling Expenses,Passenger railways
Buckinghamshire Council,31.03.2024,01.03.2024,Children's Services,Education & Childrens Services - CS Dir,AMAZON* 204-0615942-74,44.44,0,44.44,Other Personal Needs,Misc. general merchandise
Buckinghamshire Council,31.03.2024,01.03.2024,Children's Services,Education & Childrens Services - CS Dir,GF* WWW.SNAPFITNESS.CO,30.99,0,30.99,YOS - Direct Work,Misc. personal services
Buckinghamshire Council,31.03.2024,01.03.2024,"Planning, Growth & Sustainability",Housing & Homelessness & Regulatory PGS,AMZNMKTPLACE,23.98,0,23.98,Protective Clothing & Uniforms,Miscellaneous retail
Buckinghamshire Council,31.03.2024,01.03.2024,"Planning, Growth & Sustainability",Housing & Homelessness & Regulatory PGS,AMAZON* 204-3613446-57,40.33,0,40.33,Furniture,Misc. general merchandise
Buckinghamshire Council,31.03.2024,01.03.2024,Resources,AH&R - Res Dir,GOOGLE*CLOUD P25XZ5,148.63,0,148.63,Computer Support Services,Computer network information services
Buckinghamshire Council,31.03.2024,01.03.2024,Children's Services,Education & Childrens Services - CS Dir,TRAINLINE,36.49,0,36.49,Sec 20/31: Supp for Contact,Passenger railways
Buckinghamshire Council,31.03.2024,01.03.2024,Children's Services,Education & Childrens Services - CS Dir,FIRST BUS - WEB,15.6,0,15.6,Sec 20/31: Supp for Contact,"Buses, charter & tour"
Buckinghamshire Council,31.03.2024,01.03.2024,Children's Services,Education & Childrens Services - CS Dir,MYTRIPBUS* REDLINE BUS,8,0,8,Sec 20/31: Supp for Contact,
Buckinghamshire Council,31.03.2024,01.03.2024,Children's Services,Education & Childrens Services - CS Dir,MYTRIPBUS* REDLINE BUS,8,0,8,Sec 20/31: Supp for Contact,
Buckinghamshire Council,31.03.2024,01.03.2024,Children's Services,Education & Childrens Services - CS Dir,TRAINLINE,-17.6,0,-17.6,Staff Travelling Expenses,Passenger railways
Buckinghamshire Council,31.03.2024,01.03.2024,Adults and Health,Health & Wellbeing - Adults & Health Dir,PREMIER INN,558,0,558,Other Short Term Support,Premier Inn
Buckinghamshire Council,31.03.2024,01.03.2024,Children's Services,Education & Childrens Services - CS Dir,A1 TAXI SERVICE,22,4.4,26.4,Sec 20/31: Transport,Taxicabs & limousines
Buckinghamshire Council,31.03.2024,01.03.2024,Children's Services,Education & Childrens Services - CS Dir,NEALES TAXIS LTD,666.65,133.33,799.98,Sec 20/31: Transport,Taxicabs & limousines
Buckinghamshire Council,31.03.2024,01.03.2024,Children's Services,Education & Childrens Services - CS Dir,NEALES TAXIS LTD,0.02,0,0.02,Sec 20/31: Transport,Taxicabs & limousines
Buckinghamshire Council,31.03.2024,01.03.2024,Communities,Culture & Leisure - Communities Dir,PAYPAL,36.58,0,36.58,Computer Support Services,Computer network information services
Buckinghamshire Council,31.03.2024,01.03.2024,Communities,Climate Change & Environment - Community,AMAZON* 026-2121795-31,79.9,0,79.9,Waste Prevention costs,Misc. general merchandise
Buckinghamshire Council,31.03.2024,01.03.2024,Children's Services,Education & Childrens Services - CS Dir,AMAZON* 204-9502425-79,453.93,0,453.93,Leaving Care - Grants for Care Leavers,Misc. general merchandise
Buckinghamshire Council,31.03.2024,01.03.2024,Children's Services,Education & Childrens Services - CS Dir,,599,0,0,Payments to Academies,Missing merchant category
